Cogmind - Beta 10 X2 @@@ ROGUE MODE // 2020.06.30 @ 23:20:52 Player: Nikolayag Result: Escaped singularity! Performance ------------- Evolutions (9) 4500 Regions Visited (37) 7400 Robots Destroyed (454) 2270 Value Destroyed (16076) 16076 Prototype IDs (95) 1900 Alien Tech Used (7) 1400 Bonus (74808) 74808 TOTAL SCORE: 108354 Bonus ------- Triggered High Security 1500 High Alert Combat Kills 2091 Follower Combat Kills 20370 Aligned with FarCom 300 Met Data Miner 300 Met Imprinter 300 Was Imprinted 300 Triggered Deep Caves Wall 1000 Exposed GOLEM Chamber 15000 Met Zhirov 300 Met Warlord at Base 500 MAIN.C Attacked Warlord 500 Warlord Defense Kill 370 Used Core Reset Matrix 3000 Destroyed MAIN.C Guards 500 Met MAIN.C 5000 Destroyed MAIN.C Shell 5000 Destroyed MAIN.C 10000 Met Architect 300 Destroyed A8 300 Destroyed A6 400 Destroyed Architect 15000 Win 3000 Friendly Fire -10523 Cogmind --------- Core Integrity 917/1600 Matter 94/300 Energy 619/1700 System Corruption 1% Temperature Cool (0) Movement Rolling (140) Ox5 Location Near Former Tau Ceti IV Parts ------- > --- POWER (2) -------- Vortex Chain Reactor > --- PROPULSION (2) --- Centrium Wheel Centrium Wheel > --- UTILITY (20) ----- Power Amplifier High-capacity Storage Unit High-capacity Storage Unit Lightpack 2.0 Experimental Energy Well Advanced Visual Processing Unit Experimental Sensor Array Experimental Signal Interpreter Advanced Terrain Scan Processor Advanced Targeting Computer Experimental Armor Integrity Analyzer Improved Utility Shielding Zionite Weapon Casing Powered Armor Powered Armor Experimental Powered Armor Experimental Powered Armor AEGIS Remote Shield > --- WEAPON (2) ------- Hardcell Cannon > --- INVENTORY (40) --- Zero-point Reactor Zero-point Reactor Centrium Wheel Advanced Cooling System Experimental Energy Well (176) Zionite Biocell (0) Zionite Biocell (0) Zionite Biocell (0) Matter Compressor (250) Quantum Capacitor Improved Utility Shielding Zionite Weapon Casing Zionite Weapon Casing Advanced Thermal Defense Suite Advanced Force Field Advanced Dynamic Insulation System Thief Drone Bay (3/3) Combat Drone Bay (2/2) Bomb Factory No. 2 Chronowheel Long-range Proton Cannon Improved Potential Cannon Hypervelocity Railgun Hypervelocity Railgun 8R-AWN's Boregun 8R-AWN's Boregun Omega Cannon Improved Plasma Cutter Sigix Broadsword CR-A16's Behemoth Slayer Peak State ------------ > --- POWER ------------ Particle Reactor Improved Quantum Reactor > --- PROPULSION ------- Centrium Wheel Centrium Wheel > --- UTILITY ---------- Advanced Cooling System High-capacity Storage Unit High-capacity Storage Unit Humpback Humpback Lightpack 2.0 Zionite Biocell Advanced Visual Processing Unit Experimental Sensor Array Experimental Signal Interpreter Experimental Armor Integrity Analyzer Improved Utility Shielding Powered Armor Advanced Thermal Defense Suite AEGIS Remote Shield Phase Redirector Advanced Dynamic Insulation System > --- WEAPON ----------- Sigix Terminator > --- INVENTORY -------- Vortex Chain Reactor Centrium Wheel Experimental Energy Well Zionite Biocell Zionite Biocell Matter Compressor Surveybot 24 Scanner Particle Accelerator Quantum Capacitor Improved Utility Shielding Improved Utility Shielding Zionite Weapon Casing Zionite Weapon Casing Zionite Weapon Casing Zionite Weapon Casing Damper Plating Powered Armor Powered Armor Improved Powered Armor Advanced Force Field Improved System Restoration Module Thief Drone Bay Combat Drone Bay Bomb Factory No. 2 GOLEM Unit GOLEM Unit GOLEM Unit GOLEM Unit GOLEM Unit GOLEM Unit GOLEM Unit GOLEM Unit GOLEM Unit GOLEM Unit Chronowheel High-powered Transdimensional Reconstructor Subatomic Replicator Gamma Rifle Long-range Proton Cannon Improved Potential Cannon KE Penetrator Railgun Railgun Hypervelocity Railgun Hypervelocity Railgun Hypervelocity Railgun Hypervelocity Railgun 8R-AWN's Boregun 8R-AWN's Boregun Hypervelocity Gauss Cannon Hardcell Cannon Improved Proton Missile Launcher Scatter Rocket Array Plasma Cutter Sigix Broadsword CR-A16's Behemoth Slayer [Rating: 226] Favorites ----------- Power Particle Reactor Engine Cooled Ion Engine Power Core Reinforced Fission Core Reactor Particle Reactor Propulsion Compact Wheel Treads Light Treads Wheel Compact Wheel Utility Humpback Device Experimental Sensor Array Storage Humpback Processor Experimental Signal Interpreter Hackware Hacking Suite Protection Powered Armor Artifact Phase Redirector Weapon CR-A16's Behemoth Slayer Energy Gun High-powered Shock Rifle Energy Cannon Long-range Proton Cannon Ballistic Gun 8R-AWN's Boregun Ballistic Cannon Assault Cannon Launcher Improved Proton Missile Launcher Special Weapon Plasma Cutter Slashing Weapon Phasing Sabre Piercing Weapon CR-A16's Behemoth Slayer Special Melee Weapon Datajack Build | -11 -10 -10 -9 -9 -9 -8 -8 -7 -7 -7 -7 -6 -6 -6 -6 -6 -6 -5 -5 -5 -5 -5 -4 -4 -4 -4 -4 -4 -4 -3 -3 -3 -2 -2 -1 -1 -1 ------- Run | Scr Mat Min Mat Min Exi Min Mat Fac Low Low Dat Pro Fac Low Low Zio Dee Pro Fac Upp Upp War Pro Fac Was Fac Upp Upp Zhi Pro Res Qua Res Tes Acc Com Ac0 Slots Evolved 18 | . . . 2 . . . 2 2 . . . . 2 . . . . . 2 . . . . 2 . . . . . . 2 . 2 . 2 . . Power 1 | . . . . . . . . . . . . . . . . . . . . . . . . . . . . . . . 1 . . . . . . Propulsion . | . . . . . . . . . . . . . . . . . . . . . . . . . . . . . . . . . . . . . . Utility 17 | . . . 2 . . . 2 2 . . . . 2 . . . . . 2 . . . . 2 . . . . . . 1 . 2 . 2 . . Weapon . | . . . . . . . . . . . . . . . . . . . . . . . . . . . . . . . . . . . . . . Parts Attached 700 | 7 13 3 20 3 17 4 41 48 7 17 . 8 54 8 3 17 29 4 52 14 10 2 7 19 4 56 15 18 11 6 26 31 11 8 10 83 14 Power 32 | 1 1 . 2 . 1 . 2 . . . . 1 2 . . . 1 . 1 1 2 . . . . 2 . 1 1 . 3 3 . 2 . 5 . Engine 5 | 1 . . 2 . 1 . 1 . . . . . . . . . . . . . . . . . . . . . . . . . . . . . . Core 3 | . 1 . . . . . 1 . . . . . . . . . . . . . . . . . . . . . . . . . . . . 1 . Reactor 24 | . . . . . . . . . . . . 1 2 . . . 1 . 1 1 2 . . . . 2 . 1 1 . 3 3 . 2 . 4 . Propulsion 66 | 2 3 . . . 1 2 8 13 . . . 2 8 . . . . 2 8 . . . 1 . . 4 1 2 . . 2 1 1 1 . 3 1 Treads 20 | . 3 . . . 1 . 8 4 . . . 2 2 . . . . . . . . . . . . . . . . . . . . . . . . Leg . | . . . . . . . . . . . . . . . . . . . . . . . . . . . . . . . . . . . . . . Wheel 46 | 2 . . . . . 2 . 9 . . . . 6 . . . . 2 8 . . . 1 . . 4 1 2 . . 2 1 1 1 . 3 1 Hover . | . . . . . . . . . . . . . . . . . . . . . . . . . . . . . . . . . . . . . . Flight . | . . . . . . . . . . . . . . . . . . . . . . . . . . . . . . . . . . . . . . Utility 320 | 2 3 2 6 . 7 1 10 11 3 7 . 1 22 4 . 8 17 . 21 6 4 1 3 12 3 29 6 5 7 4 17 17 6 4 6 55 10 Device 121 | . . 1 . . 5 . 3 3 3 2 . 1 15 2 . 4 5 . 10 2 1 . 2 4 . 12 . 1 2 2 7 8 1 2 2 20 1 Storage 58 | 2 3 1 4 . 1 . 3 1 . 1 . . 1 1 . . 7 . 2 . . 1 . 2 3 2 3 . 2 . . 2 . 1 . 11 4 Processor 13 | . . . 1 . . . . 1 . . . . . . . 2 1 . . . . . . . . . . . . . . . . . 2 6 . Hackware 14 | . . . . . . . . 1 . . . . . 1 . . . . 1 . . . . 2 . 2 . . . . 2 1 3 . . 1 . Protection 112 | . . . 1 . 1 1 4 5 . 4 . . 6 . . 2 4 . 8 4 3 . 1 4 . 13 3 4 3 2 8 6 1 1 2 16 5 Artifact 2 | . . . . . . . . . . . . . . . . . . . . . . . . . . . . . . . . . 1 . . 1 . Weapon 282 | 2 6 1 12 3 8 1 21 24 4 10 . 4 22 4 3 9 11 2 22 7 4 1 3 7 1 21 8 10 3 2 4 10 4 1 4 20 3 Energy Gun 13 | 1 1 . . . . . . . . . . . 4 2 1 . . . . . . . . . . . . . . . . 3 . . . 1 . Energy Cannon 30 | . . . . . . . . . . . . . 2 . . 2 1 . 3 1 . . . 1 . 8 2 . . 1 1 . 1 . 2 4 1 Ballistic Gun 58 | 1 1 . 1 . 5 . 1 5 1 . . 1 . . . . 3 . 4 3 2 . . 3 1 5 3 6 . . 2 4 1 . . 5 . Ballistic Cannon 66 | . 4 1 6 1 . 1 10 8 . 6 . 1 7 . . . . . 7 1 . . 2 1 . 2 1 . . . . . 1 . 1 3 2 Launcher 52 | . . . 5 1 2 . 7 3 1 3 . 1 1 2 1 . 3 1 2 2 1 1 1 1 . 3 2 3 . 1 . . 1 1 1 1 . Special Weapon 7 | . . . . . . . . . . . . . . . . 1 . . . . . . . . . . . . 1 . . 1 . . . 4 . Impact Weapon . | . . . . . . . . . . . . . . . . . . . . . . . . . . . . . . . . . . . . . . Slashing Weapon 34 | . . . . 1 1 . 3 8 1 1 . 1 8 . 1 4 2 . 1 . . . . . . 1 . . 1 . . . . . . . . Piercing Weapon 21 | . . . . . . . . . 1 . . . . . . 2 1 1 5 . 1 . . 1 . 2 . 1 1 . 1 2 . . . 2 . Special Melee Weapon 1 | . . . . . . . . . . . . . . . . . 1 . . . . . . . . . . . . . . . . . . . . Unidentified Prototypes 49 | . . 1 3 . 4 . 1 1 . . . . 2 . . 3 5 . . . . . . . . 1 . . 5 1 2 4 . 2 . 14 . Parts Lost 47 | . 1 . . . . 3 7 3 . 1 . 1 3 . . . . 1 1 1 . . . 1 . 6 4 4 . . 2 . . . . 3 5 Power 3 | . . . . . . . 1 . . . . . . . . . . . . . . . . . . 1 . 1 . . . . . . . . . Propulsion 15 | . . . . . . 1 2 2 . . . 1 . . . . . 1 1 . . . . . . 3 1 2 . . 1 . . . . . . Utility 23 | . . . . . . 1 3 . . . . . 3 . . . . . . 1 . . . 1 . 2 3 1 . . 1 . . . . 2 5 Weapon 6 | . 1 . . . . 1 1 1 . 1 . . . . . . . . . . . . . . . . . . . . . . . . . 1 . Highest Loss Streak 5 | . 1 . . . . 3 5 2 . 1 . 1 2 . . . . 1 1 1 . . . 1 . 1 3 3 . . 1 . . . . 1 2 Average Slot Usage (%) 81 | . 99 100 98 100 95 80 97 92 92 91 92 91 82 80 80 78 69 71 75 76 76 76 76 76 74 72 72 69 58 69 72 82 83 86 88 87 88 Core 1 | . 3 14 4 . . . 4 7 7 7 7 . . . . . . . . . . . . . . . . . . . . . . . . . . Reactor 4 | . . . . . . . . . . . . 6 6 6 6 6 6 6 5 5 5 5 5 5 5 4 5 4 5 5 8 9 8 8 7 6 3 Treads 3 | . 18 28 22 22 22 11 18 8 . . . 14 3 . . . . . . . . . . . . . . . . . . . . . . . . Wheel 7 | . 9 . . . . 9 . 6 15 15 15 . 6 6 6 6 6 11 10 11 11 11 11 10 10 9 9 7 5 5 4 9 8 8 7 7 7 Device 8 | . . . . . 3 . 8 9 13 6 7 7 13 19 20 19 9 . 4 2 4 5 5 3 . 2 . 1 3 8 9 10 11 13 15 13 15 Storage 21 | . 28 28 22 22 16 11 21 19 15 15 15 15 13 13 13 13 18 26 23 23 23 25 23 23 29 26 25 26 26 25 22 22 20 20 23 26 15 Processor 11 | . . . 10 11 11 11 9 10 15 15 15 15 13 13 13 13 13 13 11 11 11 11 11 10 10 10 10 10 10 10 9 9 8 8 8 16 19 Hackware 2 | . . . . . . . . 7 7 7 7 7 5 . . . . . 2 . . . . 6 5 6 . . . . 3 8 9 9 5 . . Protection 5 | . . . 10 11 8 11 13 5 1 7 7 7 6 6 6 4 . . 3 7 5 3 5 5 2 . 9 8 . 5 3 4 6 3 7 6 17 Energy Cannon 1 | . . . . . . . . . . . . . 1 . . 2 1 . 1 2 . . . 1 . 3 3 . . 4 3 . . . 1 . 1 Ballistic Gun 1 | . 3 . . . 7 5 . 3 . . . . . . . . 3 . . 1 5 2 . . 4 . 1 4 . . . . . . . . . Ballistic Cannon 2 | . 18 28 21 19 6 1 12 8 . 8 15 2 1 . . . . . 3 . . . 5 3 . . . . . . . . 1 . . . 1 Slashing Weapon 1 | . . . . 1 7 . 3 2 3 5 . 5 4 6 6 5 5 . . . . . . . . . . . . . . . . . . . . Piercing Weapon 2 | . . . . . . . . . 3 . . . . . . . . 5 4 5 4 5 5 4 5 4 5 3 5 5 3 3 4 4 3 2 . Naked Turns . | . . . . . . . . . . . . . . . . . . . . . . . . . . . . . . . . . . . . . . Heaviest Build 403 | 16 27 27 87 87 100 98 115 191 151 156 156 156 210 204 201 213 271 266 292 289 286 284 286 328 383 386 361 363 358 365 399 390 316 327 334 403 203 Greatest Support 46 | 32 40 40 40 40 40 40 46 46 32 32 32 43 43 28 28 28 28 28 32 32 32 32 32 32 32 32 32 32 28 28 32 32 32 32 32 32 32 Greatest Overweight (x) 29 | . . . 2 2 2 6 2 8 4 4 4 9 9 7 7 7 9 12 23 9 8 8 8 10 11 29 12 13 12 13 13 12 9 10 10 12 6 Average Overweight (x) 7 | . . . 1 2 1 2 1 3 4 4 4 3 6 7 7 6 7 11 9 8 8 8 8 8 10 11 11 11 12 12 12 9 8 9 10 9 5 Largest Inventory Capacity 124 | 8 12 12 24 20 24 24 40 46 32 52 32 32 52 44 44 44 84 84 104 84 84 84 84 104 112 112 104 104 124 104 104 104 80 80 80 112 40 Average Capacity 65 | 5 11 11 19 20 20 24 22 28 32 32 32 32 42 43 44 44 54 84 84 84 84 84 84 87 107 104 103 104 104 104 104 88 80 80 80 76 40 Most Carried 104 | 5 12 12 20 20 24 24 25 32 32 32 31 32 44 44 43 44 84 84 84 84 84 84 84 90 96 104 104 102 104 101 104 104 80 80 79 89 40 Average Carried 62 | 3 9 11 16 20 19 23 20 26 31 29 31 31 37 40 42 43 46 82 83 83 83 83 83 84 94 100 98 100 103 99 101 84 79 79 77 71 39 Final Capacity 112 | 8 12 12 20 20 24 24 26 32 32 32 32 32 44 44 44 44 84 84 84 84 84 84 84 92 112 104 104 104 104 104 104 80 80 80 80 92 40 Final Carried 104 | 5 12 12 20 20 24 23 25 32 32 31 31 32 44 41 43 44 84 82 84 84 84 84 84 89 96 104 102 100 103 100 104 78 80 80 78 83 36 Class Distribution -------------------- 84% | Hauler-Mutant 10% | Hauler-Assassin 3% | Mutant Dominant Class ---------------- Mutant | -10/Materials Mutant | -10/Mines Hauler-Mutant | -9/Materials Hauler-Mutant | -9/Mines Hauler-Mutant | -9/Exiles Hauler-Mutant | -8/Mines Hauler-Mutant | -8/Materials Hauler-Mutant | -7/Factory Hauler-Mutant | -7/Lower Caves Hauler-Mutant | -7/Lower Caves Hauler-Mutant | -7/Data Miner Hauler-Mutant | -6/Proximity Caves Hauler-Mutant | -6/Factory Hauler-Mutant | -6/Lower Caves Hauler-Mutant | -6/Lower Caves Hauler-Mutant | -6/Zion Hauler-Mutant | -6/Deep Caves Hauler-Mutant | -5/Proximity Caves Hauler-Mutant | -5/Factory Hauler-Mutant | -5/Upper Caves Hauler-Mutant | -5/Upper Caves Hauler-Mutant | -5/Warlord Hauler-Mutant | -4/Proximity Caves Hauler-Mutant | -4/Factory Hauler-Mutant | -4/Waste Hauler-Mutant | -4/Factory Hauler-Mutant | -4/Upper Caves Hauler-Mutant | -4/Upper Caves Hauler-Mutant | -4/Zhirov Hauler-Mutant | -3/Proximity Caves Hauler-Mutant | -3/Research Hauler-Mutant | -3/Quarantine Hauler-Mutant | -2/Research Hauler-Mutant | -2/Testing Hauler-Mutant | -1/Access Hauler-Assassin | -1/Command Hauler-Skirmisher | -1/Access_0 Resources | -11 -10 -10 -9 -9 -9 -8 -8 -7 -7 -7 -7 -6 -6 -6 -6 -6 -6 -5 -5 -5 -5 -5 -4 -4 -4 -4 -4 -4 -4 -3 -3 -3 -2 -2 -1 -1 -1 ----------- Run | Scr Mat Min Mat Min Exi Min Mat Fac Low Low Dat Pro Fac Low Low Zio Dee Pro Fac Upp Upp War Pro Fac Was Fac Upp Upp Zhi Pro Res Qua Res Tes Acc Com Ac0 Matter Collected 15613 | 270 388 183 1017 99 317 1 1229 1031 173 371 . 220 681 164 78 157 1247 128 1240 281 258 139 54 446 74 934 499 437 452 411 513 401 139 142 433 827 179 Remotely 10 | . . . . . . . . . . . . . . . . . . . . . . . . . . . . . . . . . . . . 10 . Salvage Created 23450 | 56 513 100 1135 118 124 107 1606 1527 . 258 . 83 910 162 79 432 2925 265 2039 926 118 199 5 911 225 2766 518 203 452 423 1119 870 . 522 246 1381 127 Parts 945 | 2 41 9 57 4 . 3 75 67 . 14 . 1 37 7 3 19 37 26 95 25 8 9 2 27 4 130 17 13 18 6 71 61 . 20 17 15 5 Haulers Intercepted 11 | . 1 . 6 . . . 2 . . . . . . . . . . . 1 . . . . . . . . . . . . 1 . . . . . Recyclers Shooed 23 | . 2 1 3 1 . . . 4 . . . . 2 . . . . . 2 . . . . 1 . 4 . . . . 1 . . . 2 . . Parts Field Recycled . | . . . . . . . . . . . . . . . . . . . . . . . . . . . . . . . . . . . . . . Retrieved Matter . | . . . . . . . . . . . . . . . . . . . . . . . . . . . . . . . . . . . . . . Parts Self-Destructed 130 | . . . . . . . . . 1 13 . 5 . 4 . . . 18 . 4 8 48 . . . . 5 7 13 4 . . . . . . . Prevented 50 | . . . . . . . . . . . . . . 7 . . . 4 . 22 . 12 . . . . 4 . . 1 . . . . . . . Kills | -11 -10 -10 -9 -9 -9 -8 -8 -7 -7 -7 -7 -6 -6 -6 -6 -6 -6 -5 -5 -5 -5 -5 -4 -4 -4 -4 -4 -4 -4 -3 -3 -3 -2 -2 -1 -1 -1 ------- Run | Scr Mat Min Mat Min Exi Min Mat Fac Low Low Dat Pro Fac Low Low Zio Dee Pro Fac Upp Upp War Pro Fac Was Fac Upp Upp Zhi Pro Res Qua Res Tes Acc Com Ac0 Combat Hostiles Destroyed 293 | . 10 3 23 3 7 3 28 17 1 9 . 1 14 5 3 . 20 12 18 14 3 4 2 9 1 33 14 10 . 4 9 7 . 1 3 . 2 Melee 33 | . . . . . 1 . . . . . . . 1 . . . 5 1 2 1 . . . 1 . 10 . . . 1 6 4 . . . . . Guns 47 | . 5 . . . . . . 5 . . . . . 1 . . 13 . 4 1 2 . . 2 1 5 . 2 . . 3 3 . . . . . Cannons 70 | . 5 3 13 . . . 12 7 . 3 . 1 4 . . . . . 6 1 . . 1 2 . 6 3 . . 1 . . . . . . 2 AOE 113 | . . . 10 3 6 3 14 4 1 6 . . 5 4 3 . . 10 5 5 1 3 1 . . 7 8 8 . 2 . . . 1 3 . . Classes Destroyed 27 | 1 6 1 1 . 1 . 2 2 1 . . . . . 1 2 2 1 . 1 . 1 . . 1 . . . . . . 2 . . 1 . . Worker 38 | . 2 2 4 2 . . 3 3 . . . . 5 . . . . . 2 . . . . 1 . 7 . . . . 2 2 . 2 1 . . Builder 21 | . 1 . 3 . . . 4 1 . . . . . . . . . . 4 . . . . . . 2 . . . . 1 . . . 5 . . Tunneler 3 | . . 1 . . . . 1 . . . . . . . . . . . . . . . . 1 . . . . . . . . . . . . . Hauler 11 | . 1 . 6 . . . 2 . . . . . . . . . . . 1 . . . . . . . . . . . . 1 . . . . . Recycler 45 | 1 2 1 5 1 . . 4 9 . . . . 2 . . . . . 8 . . . . 1 . 5 . . . . 2 1 . 3 . . . Mechanic 1 | . . . . . . . . . . . . . . . . . . . . . . . . . . . . . . . . . . . 1 . . Operator 5 | . . . . . . . 1 . . . . . . . . . . . . . . . . . . 2 . . . . . 1 . . 1 . . Watcher 13 | . 1 . 2 . . . 3 1 . . . . . . . . . . 1 . . . . 1 . 3 . . . . 1 . . . . . . Swarmer 77 | . 3 3 7 3 . . 4 . . 3 . . 4 3 3 . . 11 5 2 . 1 . . . 9 9 5 . . . . . . 2 . . Saboteur 2 | . . . . . . . . . . . . . . . . . . . . . . 1 . . . 1 . . . . . . . . . . . Grunt 78 | . 7 . 13 . . 3 17 5 . 1 . 1 1 2 . . . . 1 6 . . . 3 . 6 5 . . 4 . 1 . 1 1 . . Brawler 5 | . . . . . . . 3 . . . . . . . . . . . . 1 . . . . . 1 . . . . . . . . . . . Duelist 4 | . . . . . . . . . . . . . . . . . . . . 4 . . . . . . . . . . . . . . . . . Researcher 2 | . . . . . . . . . . . . . . . . . . . . . . . . . . . . . . . . 2 . . . . . Sentry 25 | . . . 3 . . . 4 3 . . . . 3 . . . . . 4 1 . . . 1 . 4 . . . . 2 . . . . . . Hunter 19 | . . . . . . . . 5 . 1 . . 3 . . . . . 2 . . 2 . 2 . 4 . . . . . . . . . . . Programmer 41 | . . . . . . . . 4 . . . . 3 . . . . . 6 . 2 . 1 3 . 8 . 2 . . 7 5 . . . . . Behemoth 1 | . . . . . . . . . . . . . . . . . . 1 . . . . . . . . . . . . . . . . . . . Compactor 1 | . . . . . . . . . . . . . . . . . . . . . . . . . 1 . . . . . . . . . . . . Enhanced Grunt 1 | . . . . . . . . . . . . . . . . . . . . . . . . . . . . . . . . . . . . . 1 Enhanced Programmer 1 | . . . . . . . . . . . . . . . . . . . . . . . . . . . . . . . . . . . . . 1 Alpha 7 1 | . . . . . . . . . . . . . . . . . . . . . . . . . . . . . . . . 1 . . . . . Decomposer 1 | . . . . . . . . . . . . 1 . . . . . . . . . . . . . . . . . . . . . . . . . Samaritan 1 | . . . . . . . . . . . . . . . 1 . . . . . . . . . . . . . . . . . . . . . . Master Thief 6 | . . . . . . . . . 1 . . . . . . . . . . . 1 . 1 . . . . 3 . . . . . . . . . Assembler 2 | . . . . . . . . . . . . . . . . . 2 . . . . . . . . . . . . . . . . . . . . Assembled 8 | . . . . . 6 . . . . . . . . . . . . . . . . . . . . . . . . . . . . . . 2 . Golem 29 | . . . . . . . . . . . . . . . . . 20 . . . . . . . . . . . . . . . . . . 9 . Thug 5 | . . . . . . . . . . 4 . . . . . 1 . . . . . . . . . . . . . . . . . . . . . Fireman 1 | . . . . . . . . . . . . . . . . 1 . . . . . . . . . . . . . . . . . . . . . Mutant 4 | . . . . . . . . . . . . . . . . 4 . . . . . . . . . . . . . . . . . . . . . Best Kill Streak 8 | 1 3 4 6 3 6 3 8 6 1 4 . 1 4 3 3 . 7 4 6 7 2 4 1 5 1 8 5 5 . 4 6 2 . 2 4 . 1 Combat Bots Only 7 | . 3 2 5 3 6 3 5 3 1 4 . 1 4 3 3 . 7 4 4 7 2 4 1 3 1 5 5 5 . 4 3 2 . 1 2 . 1 Max Kills in Single Turn 5 | 1 2 1 4 3 3 3 4 2 1 2 . 1 4 1 2 1 1 4 4 1 1 1 1 1 1 3 5 5 . 1 2 1 . 1 2 1 1 Gunslinging 1 | . 1 . . . . . . . . . . . . . . . . . . . . . . . . . . . . . . . . . . . . Exploded 5 | . . . 4 3 3 3 3 1 1 2 . . 4 1 2 . . 4 3 1 1 1 1 . . 3 5 5 . 1 . . . 1 2 . . Melee 1 | . . . . . 1 . . . . . . . 1 . . . 1 1 1 1 . . . 1 . 1 . . . 1 1 1 . . . . . Uniques/NPCs Destroyed 6 | . . . . . 1 . . . . . . . . . . 1 . . . . . . . . . . . . . . . . . . . 1 3 8R-AWN (-9/Exiles) Imprinter (-6/Zion) MAIN.C Shell (-1/Command) MAIN.C (-1/Command) A8 (-1/Access_0) A6 (-1/Access_0) Architect (-1/Access_0) Combat | -11 -10 -10 -9 -9 -9 -8 -8 -7 -7 -7 -7 -6 -6 -6 -6 -6 -6 -5 -5 -5 -5 -5 -4 -4 -4 -4 -4 -4 -4 -3 -3 -3 -2 -2 -1 -1 -1 -------- Run | Scr Mat Min Mat Min Exi Min Mat Fac Low Low Dat Pro Fac Low Low Zio Dee Pro Fac Upp Upp War Pro Fac Was Fac Upp Upp Zhi Pro Res Qua Res Tes Acc Com Ac0 Damage Taken 22795 | . 456 107 389 8 71 1242 1497 1676 97 603 . 37 1450 65 55 . 28 729 1722 964 156 18 123 1000 . 2753 1305 1396 . 677 635 303 214 322 576 641 1480 Core 2725 | . 170 8 30 . . 345 178 133 5 55 . . 162 10 12 . . 101 157 115 18 . . 46 . 331 115 104 . 34 12 22 24 76 174 109 179 Absorbed by Shields 4275 | . . . . . . . 216 . . . . . 133 23 20 . . . . . . . . . . . . . . . 662 319 218 318 533 554 1279 Redirected to Core 266 | . . . . . . . . . . . . . . . . . . . . . . . . . . . . . . . . . 12 49 77 82 46 Core Remaining (%) 63 | 100 . 28 . . . 6 67 . . . . 72 . . . . . 66 . . . . 71 . . . . . . 45 . 97 . 93 . . 57 Volleys Fired 1047 | 1 45 16 75 11 6 2 92 81 6 28 . 6 38 15 9 . 53 8 57 32 7 4 10 30 4 67 32 14 28 8 23 47 3 7 14 132 36 Largest 2 | 1 2 2 2 2 2 1 2 2 1 2 . 2 2 1 1 . 1 1 2 1 2 1 1 2 1 2 1 2 1 1 2 2 1 1 1 2 1 Hottest 200 | 40 80 70 88 88 46 30 88 88 33 96 . 96 150 60 60 . 30 43 134 81 60 43 57 81 30 81 81 60 20 81 81 81 61 43 81 81 200 Shots Fired 1422 | 1 84 32 143 12 8 2 139 144 6 40 . 10 70 15 9 . 53 8 86 32 12 4 10 35 4 70 32 21 28 8 44 55 3 7 14 145 36 Gun 355 | 1 34 . . . 5 . . 54 . . . 2 28 6 4 . 53 . 29 3 10 . . 10 4 16 . 13 . . 39 18 . . . 26 . Cannon 740 | . 50 32 136 10 . . 114 78 . 32 . 8 42 . . . . . 56 12 . . 9 23 . 45 30 . . 6 5 1 3 . 6 6 36 Launcher 151 | . . . 7 2 3 2 25 12 6 8 . . . 9 5 . . 8 1 17 2 4 1 2 . 9 2 8 . 2 . . . 7 8 1 . Special 176 | . . . . . . . . . . . . . . . . . . . . . . . . . . . . . 28 . . 36 . . . 112 . Kinetic 867 | . 55 32 136 10 5 . 114 132 . 32 . 10 26 . . . 53 . 76 8 10 . 9 20 4 17 5 13 . . 39 16 3 . 3 29 10 Thermal 203 | . . . . . . . . . . . . . . . . . . . . . . . . . . . . . 28 . . 36 . . . 113 26 Explosive 69 | . . . 7 2 3 2 2 . 6 5 . . . 6 5 . . 7 1 . 2 . 1 . . 2 2 8 . 2 . . . . 6 . . Electromagnetic 283 | 1 29 . . . . . 23 12 . 3 . . 44 9 4 . . 1 9 24 . 4 . 15 . 51 25 . . 6 5 3 . 7 5 3 . Robot Hit Streak 22 | 1 9 6 10 5 7 8 18 18 20 6 . 4 15 6 7 . 14 1 8 8 3 . 5 7 3 7 6 5 22 7 6 4 1 2 5 17 12 Robot Miss Streak 11 | . 3 3 4 1 1 . 4 5 . 3 . 2 4 3 1 . 2 1 6 6 4 . 3 4 1 5 4 11 2 3 2 4 2 1 5 3 2 Penetration Max 2 | . . . . . . . . . . . . . . . . . 2 . . . 1 . . . 1 1 . . . . 2 . . . . 1 . Secondary Targets 5 | . 1 . . . . . . . . . . . . . . . . . 1 . 1 . . 1 . . . 1 . . . . . . . . . Max Gunslinging Chain 1 | . 1 . . . . . . . . . . . . . . . . . 1 . 1 . . 1 . . . 1 . . . . . . . . . Shots Hit Robots 1118 | 1 53 16 88 8 17 1 87 110 2 22 . 7 58 7 5 16 88 5 67 15 7 . 7 30 3 80 16 18 26 14 43 48 2 6 10 118 17 Core Hits 840 | 1 21 7 49 6 16 7 64 51 10 23 . 5 23 14 6 7 75 13 51 22 6 9 5 15 3 65 23 20 14 26 22 20 1 16 67 45 12 Critical Hits 177 | . . . 2 . . . 3 . . . . 2 1 . . . 40 . 12 . 5 . 1 12 . 17 1 6 1 2 27 9 1 1 . 33 1 Critical Kills 70 | . . . . . . . . . . . . 1 1 . . . 26 . 5 . 2 . . 4 . 10 . 2 1 1 7 3 . 1 . 6 . Critical Parts Destroyed 100 | . . . 2 . . . 3 . . . . 1 . . . . 13 . 7 . 3 . 1 8 . 7 1 4 . 1 20 5 1 . . 22 1 Melee Attacks 752 | . . . . 3 13 . 18 35 11 8 . 18 32 4 7 43 93 28 55 7 9 6 6 22 2 107 11 7 1 17 40 68 19 7 23 31 1 Impact . | . . . . . . . . . . . . . . . . . . . . . . . . . . . . . . . . . . . . . . Slashing 260 | . . . . 3 13 . 18 35 5 8 . 18 32 4 7 41 69 2 4 . . . . . . 1 . . . . . . . . . . . Piercing 491 | . . . . . . . . . 6 . . . . . . 2 23 26 51 7 9 6 6 22 2 106 11 7 1 17 40 68 19 7 23 31 1 Sneak Attacks 91 | . . . . . . . 2 10 . . . . 9 . . 16 1 . 11 . . . . 2 . 11 . . . . 3 9 . 3 3 11 . Combat Hostiles 1 | . . . . . . . . . . . . . . . . . . . . . . . . . . . . . . . . 1 . . . . . Follow-up Attacks . | . . . . . . . . . . . . . . . . . . . . . . . . . . . . . . . . . . . . . . Damage Inflicted 69223 | 15 1126 282 2915 426 759 246 4252 3432 420 1452 . 166 3315 692 408 1960 6292 798 4649 1467 361 401 383 1529 80 5975 1185 1047 486 1652 2314 2608 94 1153 2805 9903 2175 Guns 5709 | 15 215 . . . 67 . . 635 . . . 26 429 122 94 . 1179 . 401 45 177 . . 110 80 270 . 196 . . 1004 265 . . . 379 . Cannons 13274 | . 694 282 1807 188 . . 1894 1131 . 540 . 140 866 . . . . . 1120 177 . . 275 611 . 1373 602 . . 146 36 . 43 . 174 107 1068 Explosions 25011 | . 217 . 1092 238 361 246 2050 526 420 912 . . 826 570 314 . 536 673 683 1172 184 401 108 213 . 1201 583 690 . 560 . . . 560 2041 6527 1107 Melee 23842 | . . . . . 331 . 308 1121 . . . . 1194 . . 1960 4577 125 2445 73 . . . 595 . 3131 . 161 176 946 1274 2064 51 593 590 2127 . Ramming 35 | . . . 16 . . . . 19 . . . . . . . . . . . . . . . . . . . . . . . . . . . . . Kinetic 14156 | . 723 282 1807 188 67 . 1894 1766 . 540 . 166 638 . . . 1179 . 1318 77 177 . 275 318 80 291 127 196 . . 1004 196 43 . 87 458 259 Thermal 11850 | . 217 . . . . . 84 . . 126 . . 826 . . . . . 283 100 . 11 . . . 364 84 . 310 . . 279 . . . 7250 1916 Explosive 9423 | . . . 1092 238 361 246 766 . 420 576 . . . 296 314 . . 575 243 . 184 . 108 . . 320 499 690 . 560 . . . . 1895 40 . Electromagnetic 9917 | 15 186 . . . . . 1200 526 . 210 . . 657 396 94 . 536 98 360 1217 . 390 . 616 . 1869 475 . . 146 36 69 . 560 233 28 . Impact . | . . . . . . . . . . . . . . . . . . . . . . . . . . . . . . . . . . . . . . Slashing 9474 | . . . . . 331 . 308 1121 . . . . 1194 . . 1851 4332 95 242 . . . . . . . . . . . . . . . . . . Piercing 14368 | . . . . . . . . . . . . . . . . 109 245 30 2203 73 . . . 595 . 3131 . 161 176 946 1274 2064 51 593 590 2127 . Highest Corruption 12 | . 2 2 . . . . 1 . . . . . 1 1 1 1 . . 3 3 4 12 1 3 3 7 1 10 10 . 8 3 . . 2 2 1 Average Corruption 2 | . 2 2 . . . . 1 . . . . . 1 1 1 1 . . 1 3 3 8 1 1 3 3 1 5 6 . 4 2 . . 1 1 1 Corruption Purged 31 | . . . . . . . . . . . . . . . . . . . . . . . . . . 7 . . 10 . 9 3 . . . 2 . Effects 177 | . 6 6 . . . . . . . . . . 5 1 1 . . . 9 7 18 1 . 1 3 53 . 12 26 . 15 8 . . 4 1 . Message Errors 38 | . 4 3 . . . . . . . . . . 1 1 . . . . 3 1 5 . . . 1 11 . 2 2 . 2 2 . . . . . Matter Fused 43 | . . . . . . . . . . . . . . . . . . . 3 3 7 1 . . . 12 . 5 9 . 3 . . . . . . Heat Flow Errors 16 | . . . . . . . . . . . . . . . . . . . . 1 . . . . . 5 . 1 2 . 4 2 . . . 1 . Energy Discharges 26 | . . 1 . . . . . . . . . . 1 . . . . . 1 . 3 . . . 1 15 . . 2 . . 1 . . 1 . . Data Loss (minor) 25 | . . 1 . . . . . . . . . . 2 . 1 . . . . 2 3 . . 1 1 5 . 2 4 . . 1 . . 2 . . Data Loss (major) 3 | . . . . . . . . . . . . . . . . . . . . . . . . . . . . . 3 . . . . . . . . Misfires 3 | . . . . . . . . . . . . . . . . . . . . . . . . . . . . 1 . . 2 . . . . . . Targeting Errors 20 | . 2 1 . . . . . . . . . . 1 . . . . . 2 . . . . . . 3 . 1 4 . 3 2 . . 1 . . Weapon Failures 3 | . . . . . . . . . . . . . . . . . . . . . . . . . . 2 . . . . 1 . . . . . . Overload Shots . | . . . . . . . . . . . . . . . . . . . . . . . . . . . . . . . . . . . . . . Overflow Damage 6336 | . 77 31 59 14 17 . 224 249 8 8 . . 594 16 5 548 1506 95 295 8 3 . . 233 . 729 56 62 183 464 7 336 . 148 5 334 22 Projectiles 308 | . 22 31 7 11 . . 50 31 . . . . 27 . . . . . 2 . . . . . . 14 50 . 28 6 . 4 . . . 3 22 Explosions 936 | . 55 . 52 3 17 . 71 4 8 8 . . 102 16 5 . 71 95 58 8 3 . . 4 . 64 6 19 . 7 . . . . 5 255 . Melee 5092 | . . . . . . . 103 214 . . . . 465 . . 548 1435 . 235 . . . . 229 . 651 . 43 155 451 7 332 . 148 . 76 . Knockbacks 65 | . 3 . 12 2 . . 14 13 . 1 . 1 2 . . . . . 11 1 . . . . . . 3 . . . . . . . 1 . 1 Impact . | . . . . . . . . . . . . . . . . . . . . . . . . . . . . . . . . . . . . . . Kinetic 61 | . 3 . 11 2 . . 14 12 . 1 . 1 2 . . . . . 9 1 . . . . . . 3 . . . . . . . 1 . 1 Secondary 4 | . . . 1 . . . . 1 . . . . . . . . . . 2 . . . . . . . . . . . . . . . . . . Self-Inflicted Damage 1349 | . 120 . . . . . 203 30 84 29 . . 23 . . . . 86 28 51 27 . . . . 17 30 342 . 109 . . . . 32 78 60 Shots 57 | . 2 . . . . . 10 6 2 3 . . 1 . . . . 2 1 3 1 . . . . 3 1 14 . 4 . . . . 2 1 1 Rammed 2 | . . . 1 . . . . 1 . . . . . . . . . . . . . . . . . . . . . . . . . . . . . Targets Rammed 4 | . . . 2 . . . . 2 . . . . . . . . . . . . . . . . . . . . . . . . . . . . . Kicked . | . . . . . . . . . . . . . . . . . . . . . . . . . . . . . . . . . . . . . . Crushed 2 | . . . 1 . . . . 1 . . . . . . . . . . . . . . . . . . . . . . . . . . . . . Highest Temperature 488 | . 183 150 219 27 . 4 297 9 . 303 . 18 172 . . . . 8 488 264 . . 4 156 . 258 210 243 205 16 267 137 . . . 121 94 Average Temperature 72 | . 49 55 49 11 . 4 82 5 . 102 . 7 63 . . . . 6 118 78 . . 3 90 . 59 124 127 87 11 71 66 . . . 86 40 Received Heat Transfer 3280 | . 150 . 174 . . 9 663 417 6 189 . 18 212 18 . . . 72 144 252 . . . 78 . 243 282 . . 96 28 29 21 50 59 16 54 Siege Activations . | . . . . . . . . . . . . . . . . . . . . . . . . . . . . . . . . . . . . . . Robots Corrupted 30 | . . . . . . . 2 1 . . . . 4 . . . 2 . 1 6 . 1 . 4 . 6 3 . . . . . . . . . . Combat Hostiles 29 | . . . . . . . 2 1 . . . . 4 . . . 2 . 1 6 . 1 . 4 . 5 3 . . . . . . . . . . Parts Fried 73 | . . . . . . . 10 1 . . . . 11 . 4 . . . 4 10 . . . 10 . 18 4 . . . . . . 1 . . . Impact Corruptions . | . . . . . . . . . . . . . . . . . . . . . . . . . . . . . . . . . . . . . . Robots Melted . | . . . . . . . . . . . . . . . . . . . . . . . . . . . . . . . . . . . . . . Combat Hostiles . | . . . . . . . . . . . . . . . . . . . . . . . . . . . . . . . . . . . . . . Parts Melted 5 | . . . . . . . . . . . . . . . . . . . 1 . . . . . . . . . . . . 4 . . . . . Heat Transferred 7861 | . 150 . . . . . 100 . . 50 . . 500 . . . . . 200 100 . 50 . . . 300 50 . 803 . . 1184 . . . 3469 905 Parts Sabotaged . | . . . . . . . . . . . . . . . . . . . . . . . . . . . . . . . . . . . . . . Parts Stolen 2 | . . . . . . . . . 1 . . . . . . . . . . . . . . . . . . 1 . . . . . . . . . Parts Stripped . | . . . . . . . . . . . . . . . . . . . . . . . . . . . . . . . . . . . . . . Power Chain Reactions 12 | . . . . . . . 1 . . 1 . . 2 . . . . 1 2 1 . 1 . . . 2 1 . . . . . . . . . . Missiles Intercepted . | . . . . . . . . . . . . . . . . . . . . . . . . . . . . . . . . . . . . . . Alert | -11 -10 -10 -9 -9 -9 -8 -8 -7 -7 -7 -7 -6 -6 -6 -6 -6 -6 -5 -5 -5 -5 -5 -4 -4 -4 -4 -4 -4 -4 -3 -3 -3 -2 -2 -1 -1 -1 ------- Run | Scr Mat Min Mat Min Exi Min Mat Fac Low Low Dat Pro Fac Low Low Zio Dee Pro Fac Upp Upp War Pro Fac Was Fac Upp Upp Zhi Pro Res Qua Res Tes Acc Com Ac0 Peak Influence 10728 | 5 224 137 587 313 . 114 396 378 . . . . 471 . . . . . 517 . . . . 288 167 1719 . . . . 165 289 2181 4319 7773 10728 . Average Influence 801 | 2 94 123 359 303 . 94 190 224 . . . . 138 . . . . . 183 . . . . 94 134 862 . . . . 65 126 997 2002 4070 7025 . Maximum Alert Level 5 | . 1 . 2 1 . . 1 1 . . . . 2 . . . . . 2 . . . . 1 . 5 . . . . . 1 5 5 5 5 . Low Security (%) . | 100 96 100 20 . . 100 53 40 . . . . 67 . . . . . 63 . . . . 80 100 3 . . . . 100 29 17 . . . . Level 1 . | . 3 . 28 100 . . 46 59 . . . . 23 . . . . . 33 . . . . 20 . . . . . . . 70 5 . . . . Level 2 . | . . . 51 . . . . . . . . . 9 . . . . . 3 . . . . . . 42 . . . . . . 34 . . . . Level 3 . | . . . . . . . . . . . . . . . . . . . . . . . . . . 14 . . . . . . 5 . . . . Level 4 . | . . . . . . . . . . . . . . . . . . . . . . . . . . 39 . . . . . . 6 52 28 . . Level 5 100 | . . . . . . . . . . . . . . . . . . . . . . . . . . . . . . . . . 31 29 8 98 . High Security . | . . . . . . . . . . . . . . . . . . . . . . . . . . . . . . . . . . 18 63 1 . Max Security . | . . . . . . . . . . . . . . . . . . . . . . . . . . . . . . . . . . . . . . Squads Dispatched 131 | . 2 . 3 . . . 3 9 . . . . 6 . . . . . 5 . . . . 2 . 16 . . . . 3 6 10 12 32 22 . Investigation 8 | . 1 . . . . . . 1 . . . . . . . . . . 1 . . . . . . 3 . . . . . . 1 1 . . . Extermination 26 | . . . . . . . . 4 . . . . 3 . . . . . 2 . . . . 1 . 5 . . . . 3 4 2 1 1 . . Reinforcement 28 | . 1 . 3 . . . 3 3 . . . . 2 . . . . . 2 . . . . 1 . 3 . . . . . 2 . 5 3 . . Assault 62 | . . . . . . . . . . . . . 1 . . . . . . . . . . . . 5 . . . . . . 5 5 24 22 . Garrison 7 | . . . . . . . . 1 . . . . . . . . . . . . . . . . . . . . . . . . 2 . 4 . . Intercept . | . . . . . . . . . . . . . . . . . . . . . . . . . . . . . . . . . . . . . . Construction Impeded 10 | . . . 1 . . . 2 2 . . . . 1 . . . . . 1 . . . . 1 . 1 . . . . . . . . 1 . . Haulers Reinforced . | . . . . . . . . . . . . . . . . . . . . . . . . . . . . . . . . . . . . . . Stealth | -11 -10 -10 -9 -9 -9 -8 -8 -7 -7 -7 -7 -6 -6 -6 -6 -6 -6 -5 -5 -5 -5 -5 -4 -4 -4 -4 -4 -4 -4 -3 -3 -3 -2 -2 -1 -1 -1 --------- Run | Scr Mat Min Mat Min Exi Min Mat Fac Low Low Dat Pro Fac Low Low Zio Dee Pro Fac Upp Upp War Pro Fac Was Fac Upp Upp Zhi Pro Res Qua Res Tes Acc Com Ac0 Distress Signals 39 | . . . 3 . . . 4 2 . . . . 2 . . . . . 1 . . . . 2 . 4 . . . . . . 3 1 1 16 . Communications Jammed . | . . . . . . . . . . . . . . . . . . . . . . . . . . . . . . . . . . . . . . Distress Signals . | . . . . . . . . . . . . . . . . . . . . . . . . . . . . . . . . . . . . . . Times Spotted 809 | . 17 3 39 3 7 4 49 31 3 12 . 2 31 7 2 1 20 11 25 14 3 17 2 18 3 60 22 11 . 5 13 16 30 69 118 110 31 Peak Tracking Total 24 | . 3 3 5 3 9 4 8 4 2 4 . 3 7 4 2 1 4 4 5 7 1 9 1 4 2 8 5 5 . 5 5 3 5 17 11 24 5 Tactical Retreats 36 | . 1 . 2 . . . 3 2 . 1 . . 2 . . . . . 2 2 . . . 1 . 4 8 . . . 1 . . . . 7 . Traps | -11 -10 -10 -9 -9 -9 -8 -8 -7 -7 -7 -7 -6 -6 -6 -6 -6 -6 -5 -5 -5 -5 -5 -4 -4 -4 -4 -4 -4 -4 -3 -3 -3 -2 -2 -1 -1 -1 ------- Run | Scr Mat Min Mat Min Exi Min Mat Fac Low Low Dat Pro Fac Low Low Zio Dee Pro Fac Upp Upp War Pro Fac Was Fac Upp Upp Zhi Pro Res Qua Res Tes Acc Com Ac0 Traps Triggered 10 | . 2 . . . . . . . . . . . 1 . . . 5 . . . . . . 1 . . . . . . . . . . 1 . . Indirectly 5 | . . . . . . . . . . . . . . . . . 5 . . . . . . . . . . . . . . . . . . . . Trap Hack Attempts . | . . . . . . . . . . . . . . . . . . . . . . . . . . . . . . . . . . . . . . Triggered . | . . . . . . . . . . . . . . . . . . . . . . . . . . . . . . . . . . . . . . Disarmed . | . . . . . . . . . . . . . . . . . . . . . . . . . . . . . . . . . . . . . . Reprogrammed . | . . . . . . . . . . . . . . . . . . . . . . . . . . . . . . . . . . . . . . Reused 2 | . . . . . . . . . . . . . . . . . 2 . . . . . . . . . . . . . . . . . . . . Traps Extracted . | . . . . . . . . . . . . . . . . . . . . . . . . . . . . . . . . . . . . . . Installed 11 | . . . . . . . . . . . . . . . . . 11 . . . . . . . . . . . . . . . . . . . . Triggered 23 | . . . . . . . 2 . . . . . . . . . . . . 1 1 7 . 1 . 1 1 . . . . . . . . 9 . Fabricated Traps 11 | . . . . . . . . . . . . . . . . . 11 . . . . . . . . . . . . . . . . . . . . Machines | -11 -10 -10 -9 -9 -9 -8 -8 -7 -7 -7 -7 -6 -6 -6 -6 -6 -6 -5 -5 -5 -5 -5 -4 -4 -4 -4 -4 -4 -4 -3 -3 -3 -2 -2 -1 -1 -1 ---------- Run | Scr Mat Min Mat Min Exi Min Mat Fac Low Low Dat Pro Fac Low Low Zio Dee Pro Fac Upp Upp War Pro Fac Was Fac Upp Upp Zhi Pro Res Qua Res Tes Acc Com Ac0 Machines Disabled 107 | . 6 . 4 . 1 2 3 3 . . . . 9 . . 1 3 . 13 . . . . 1 . 9 . . . . 2 7 4 16 9 10 4 Max in Single Turn 6 | . 6 . 1 . 1 2 1 1 . . . . 4 . . . 1 . 4 . . . . 1 . 5 . . . . 1 1 . 1 . 2 1 Garrison Access 10 | . . . . . . . . 1 . . . . 1 . . . . . 3 . . . . . . 2 . . . . . . 1 1 1 . . Phase Generator 1 | . . . . . . . . . . . . . . . . . . . . . . . . . . . . . . . . . . . . 1 . Machines Sabotaged . | . . . . . . . . . . . . . . . . . . . . . . . . . . . . . . . . . . . . . . Garrisons Compromised . | . . . . . . . . . . . . . . . . . . . . . . . . . . . . . . . . . . . . . . Overloaded Fab Kills . | . . . . . . . . . . . . . . . . . . . . . . . . . . . . . . . . . . . . . . Fab Network Shutdowns 1 | . . . . . . . . . . . . . . . . . . . . . . . . . . 1 . . . . . . . . . . . Hacking | -11 -10 -10 -9 -9 -9 -8 -8 -7 -7 -7 -7 -6 -6 -6 -6 -6 -6 -5 -5 -5 -5 -5 -4 -4 -4 -4 -4 -4 -4 -3 -3 -3 -2 -2 -1 -1 -1 --------- Run | Scr Mat Min Mat Min Exi Min Mat Fac Low Low Dat Pro Fac Low Low Zio Dee Pro Fac Upp Upp War Pro Fac Was Fac Upp Upp Zhi Pro Res Qua Res Tes Acc Com Ac0 Machines Accessed 92 | . 1 1 . . 2 . 6 6 3 3 4 . 7 1 1 . . . 10 . . 2 . 6 . 15 . . 4 . 1 10 3 3 2 1 . Terminals 38 | . 1 . . . . . 3 3 . . . . 4 1 . . . . 4 . . . . 3 . 6 . . . . . 8 . 2 2 1 . Fabricators 12 | . . . . . . . . 2 . . . . 1 . . . . . 1 . . . . 2 . 3 . . . . . . 2 1 . . . Repair Stations 10 | . . . . . . . 2 . . . . . 1 . . . . . 1 . . . . . . 3 . . . . . 2 1 . . . . Recycling Units 2 | . . . . . . . . . . . . . . . . . . . 1 . . . . . . 1 . . . . . . . . . . . Scanalyzers 2 | . . . . . . . 1 . . . . . . . . . . . . . . . . . . . . . . . 1 . . . . . . Garrison Access 8 | . . . . . . . . 1 . . . . 1 . . . . . 3 . . . . 1 . 2 . . . . . . . . . . . Total Hacks 472 | . 4 1 . . 2 . 20 28 10 5 25 . 61 2 1 . . . 67 . . 5 . 24 . 58 . . 17 . 8 71 22 23 16 2 . Successful 287 | . 2 1 . . 2 . 16 20 10 5 25 . 26 1 1 . . . 34 . . 5 . 14 . 40 . . 17 . 2 34 15 8 8 1 . Failed 184 | . 2 . . . . . 4 8 . . . . 35 . . . . . 33 . . . . 10 . 18 . . . . 6 37 7 15 8 1 . Catastrophic 35 | . 1 . . . . . 1 2 . . . . 6 . . . . . 9 . . . . 1 . 2 . . . . . 5 3 4 . 1 . Database Lockouts 1 | . . . . . . . . . . . . . . 1 . . . . . . . . . . . . . . . . . . . . . . . Manual 134 | . 4 . . . 1 . 8 12 . . . . 16 2 . 7 . . 24 . . 1 . 7 . 10 . . . . . 39 2 1 . . . Terminals 207 | . 4 . . . . . 11 9 . . . . 22 2 . . . . 31 . . . . 13 . 19 . . . . . 61 . 17 16 2 . Fabricators 95 | . . . . . . . . 17 . . . . 21 . . . . . 6 . . . . 9 . 19 . . . . . . 17 6 . . . Repair Stations 49 | . . . . . . . 4 . . . . . 6 . . . . . 11 . . . . . . 13 . . . . . 10 5 . . . . Recycling Units 3 | . . . . . . . . . . . . . . . . . . . 1 . . . . . . 2 . . . . . . . . . . . Scanalyzers 13 | . . . . . . . 5 . . . . . . . . . . . . . . . . . . . . . . . 8 . . . . . . Garrison Access 39 | . . . . . . . . 2 . . . . 12 . . . . . 18 . . . . 2 . 5 . . . . . . . . . . . Terminal Hacks 141 | . 1 1 . . 2 . 6 3 10 5 25 . 6 1 1 . . . 11 . . 5 . 3 . 8 . . 17 . . 22 . 5 8 1 . Record 37 | . . . . . 1 . . . 8 3 11 . . . . . . . . . . 5 . . . . . . 5 . . 2 . . 2 . . Part Schematic 18 | . 1 . . . . . . 2 . . 6 . . 1 . . . . 1 . . . . . . . . . 4 . . 3 . . . . . Robot Schematic 6 | . . . . . . . . . . . 5 . . . . . . . . . . . . . . . . . . . . 1 . . . . . Robot Analysis 4 | . . . . . . . . . . . . . . . . . . . . . . . . . . . . . 4 . . . . . . . . Prototype ID Bank 8 | . . . . . . . . . . . 3 . . . . . . . . . . . . . . 1 . . 4 . . . . . . . . Open Door 7 | . . 1 . . . . . . 2 2 . . . . 1 . . . . . . . . . . . . . . . . 1 . . . . . Level Access Points 2 | . . . . . . . . . . . . . . . . . . . . . . . . . . . . . . . . 1 . 1 . . . Branch Access Points 2 | . . . . . . . . . . . . . . . . . . . . . . . . . . . . . . . . 1 . . 1 . . Emergency Access Points 1 | . . . . . . . . . . . . . . . . . . . . . . . . . . . . . . . . . . 1 . . . Machine Index 2 | . . . . . . . . . . . . . . . . . . . . . . . . 1 . . . . . . . 1 . . . . . Fabricator Index 2 | . . . . . . . . . . . . . . . . . . . . . . . . . . 1 . . . . . . . . 1 . . Repair Station Index 3 | . . . . . . . 1 . . . . . . . . . . . . . . . . . . 1 . . . . . 1 . . . . . Garrison Index 1 | . . . . . . . . . . . . . . . . . . . . . . . . . . . . . . . . . . . 1 . . Alert Level 2 | . . . . . . . . . . . . . 1 . . . . . . . . . . . . 1 . . . . . . . . . . . Unreport Threat 12 | . . . . . . . 1 . . . . . 1 . . . . . 2 . . . . 1 . 2 . . . . . 1 . 2 2 . . Locate Traps 5 | . . . . . . . 1 . . . . . 1 . . . . . 2 . . . . . . . . . . . . 1 . . . . . Dispatch Records 1 | . . . . . . . . . . . . . . . . . . . 1 . . . . . . . . . . . . . . . . . . Transport Status 1 | . . . . . . . 1 . . . . . . . . . . . . . . . . . . . . . . . . . . . . . . Recall Extermination 4 | . . . . . . . . . . . . . . . . . . . 1 . . . . . . 1 . . . . . 2 . . . . . Recall Reinforcements 2 | . . . . . . . . . . . . . . . . . . . . . . . . . . . . . . . . 2 . . . . . Hauler Manifests 5 | . . . . . . . 1 . . . . . 1 . . . . . 1 . . . . . . . . . . . . 1 . 1 . . . Registered Components 3 | . . . . . . . . . . . . . 1 . . . . . 1 . . . . . . . . . . . . 1 . . . . . Registered Prototypes 2 | . . . . . . . . . . . . . . . . . . . 1 . . . . . . . . . . . . 1 . . . . . Zone Layout 9 | . . . . . . . 1 1 . . . . 1 . . . . . 1 . . . . 1 . 1 . . . . . 2 . . 1 . . EX-Prototype ID Bank 1 | . . . . . 1 . . . . . . . . . . . . . . . . . . . . . . . . . . . . . . . . Disengage Seal 1 | . . . . . . . . . . . . . . . . . . . . . . . . . . . . . . . . . . . . 1 . Fabricator Hacks 53 | . . . . . . . . 11 . . . . 9 . . . . . 3 . . . . 7 . 12 . . . . . . 9 2 . . . Network Status 3 | . . . . . . . . 1 . . . . 1 . . . . . . . . . . . . . . . . . . . 1 . . . . Load Schematic 20 | . . . . . . . . 4 . . . . 4 . . . . . 1 . . . . 2 . 4 . . . . . . 4 1 . . . Build 30 | . . . . . . . . 6 . . . . 4 . . . . . 2 . . . . 5 . 8 . . . . . . 4 1 . . . Repair Station Hacks 40 | . . . . . . . 4 . . . . . 3 . . . . . 10 . . . . . . 12 . . . . . 7 4 . . . . Scan Component 21 | . . . . . . . 2 . . . . . 2 . . . . . 5 . . . . . . 6 . . . . . 4 2 . . . . Repair 19 | . . . . . . . 2 . . . . . 1 . . . . . 5 . . . . . . 6 . . . . . 3 2 . . . . Recycling Unit Hacks 2 | . . . . . . . . . . . . . . . . . . . 1 . . . . . . 1 . . . . . . . . . . . Retrieve Components 2 | . . . . . . . . . . . . . . . . . . . 1 . . . . . . 1 . . . . . . . . . . . Scanalyzer 7 | . . . . . . . 5 . . . . . . . . . . . . . . . . . . . . . . . 2 . . . . . . Insert Component 3 | . . . . . . . 2 . . . . . . . . . . . . . . . . . . . . . . . 1 . . . . . . Analyze 4 | . . . . . . . 3 . . . . . . . . . . . . . . . . . . . . . . . 1 . . . . . . Garrison Access Hacks 6 | . . . . . . . . 1 . . . . 1 . . . . . 2 . . . . . . 2 . . . . . . . . . . . Seal Access 6 | . . . . . . . . 1 . . . . 1 . . . . . 2 . . . . . . 2 . . . . . . . . . . . Unauthorized Hacks 38 | . 1 . . . . . 1 5 . . . . 7 . . . . . 7 . . . . 4 . 5 . . . . . 5 2 1 . . . Terminals 23 | . 1 . . . . . 1 2 . . . . 5 . . . . . 4 . . . . 3 . 1 . . . . . 5 . 1 . . . Track 2 | . . . . . . . . . . . . . 1 . . . . . . . . . . . . . . . . . . 1 . . . . . Assimilate 3 | . . . . . . . . 1 . . . . . . . . . . . . . . . 1 . . . . . . . . . 1 . . . Botnet 14 | . 1 . . . . . 1 1 . . . . 2 . . . . . 3 . . . . 2 . 1 . . . . . 3 . . . . . Disrupt 1 | . . . . . . . . . . . . . 1 . . . . . . . . . . . . . . . . . . . . . . . . Operators 3 | . . . . . . . . . . . . . 1 . . . . . 1 . . . . . . . . . . . . 1 . . . . . Fabricators 14 | . . . . . . . . 3 . . . . 2 . . . . . 2 . . . . 1 . 4 . . . . . . 2 . . . . Prioritize 6 | . . . . . . . . 1 . . . . 1 . . . . . 1 . . . . . . 1 . . . . . . 2 . . . . Siphon 8 | . . . . . . . . 2 . . . . 1 . . . . . 1 . . . . 1 . 3 . . . . . . . . . . . Repair Stations . | . . . . . . . . . . . . . . . . . . . . . . . . . . . . . . . . . . . . . . Recycling Units . | . . . . . . . . . . . . . . . . . . . . . . . . . . . . . . . . . . . . . . Scanalyzers . | . . . . . . . . . . . . . . . . . . . . . . . . . . . . . . . . . . . . . . Garrison Access 1 | . . . . . . . . . . . . . . . . . . . 1 . . . . . . . . . . . . . . . . . . Jam 1 | . . . . . . . . . . . . . . . . . . . 1 . . . . . . . . . . . . . . . . . . Data Cores Recovered 1 | . . . . . . . . . . . . . . . . . . . . . . . . . . . . . . . . . . 1 . . . Used . | . . . . . . . . . . . . . . . . . . . . . . . . . . . . . . . . . . . . . . Hacking Detections 61 | . 1 . . . . . 5 4 . . . . 7 . . . . . 9 . . . . 5 . 11 . . . . 1 9 3 3 2 1 . Full Trace Events 6 | . . . . . . . 1 1 . . . . . . . . . . . . . . . . . 3 . . . . . . 1 . . . . Feedback Events 1 | . . . . . . . . . . . . . . . . . . . . . . . . . . 1 . . . . . . . . . . . Corruption 1 | . . . . . . . . . . . . . . . . . . . . . . . . . . 1 . . . . . . . . . . . Feedback Blocked . | . . . . . . . . . . . . . . . . . . . . . . . . . . . . . . . . . . . . . . Robot Schematics Acquired 6 | . . . . . . . . . . . 5 . . . . . . . . . . . . . . . . . . . . 1 . . . . . Robots Built 2 | . . . . . . . . . . . . . . . . . . . . . . . . . . . . . . . . . 2 . . . . Matter 636 | . . . . . . . . . . . . . . . . . . . . . . . . . . . . . . . . . 636 . . . . Time 225 | . . . . . . . . . . . . . . . . . . . . . . . . . . . . . . . . . 225 . . . . Total Robot Build Rating 12 | . . . . . . . . . . . . . . . . . . . . . . . . . . . . . . . . . 12 . . . . Part Schematics Acquired 21 | . 1 . . . . . 2 2 . . 6 . . 1 . . . . 1 . . . . . . . . . 4 . 1 3 . . . . . Parts Built 33 | . . . . . . . . 8 . . . . 4 . . . . . 2 . . . . 4 . 11 . . . . . . 2 2 . . . Matter 3136 | . . . . . . . . 658 . . . . 603 . . . . . 152 . . . . 602 . 741 . . . . . . 146 234 . . . Time 888 | . . . . . . . . 227 . . . . 104 . . . . . 50 . . . . 208 . 224 . . . . . . 36 39 . . . Total Part Build Rating 99 | . . . . . . . . 23 . . . . 13 . . . . . 2 . . . . 14 . 27 . . . . . . 6 14 . . . Parts Repaired 19 | . . . . . . . 2 . . . . . 1 . . . . . 5 . . . . . . 6 . . . . . 3 2 . . . . Time 658 | . . . . . . . 64 . . . . . 30 . . . . . 226 . . . . . . 218 . . . . . 70 50 . . . . Parts Recycled . | . . . . . . . . . . . . . . . . . . . . . . . . . . . . . . . . . . . . . . Recycled Matter . | . . . . . . . . . . . . . . . . . . . . . . . . . . . . . . . . . . . . . . Retrieved Matter . | . . . . . . . . . . . . . . . . . . . . . . . . . . . . . . . . . . . . . . Retrieved Components 20 | . . . . . . . . . . . . . . . . . . . 10 . . . . . . 10 . . . . . . . . . . . Parts Scanalyzed 3 | . . . . . . . 2 . . . . . . . . . . . . . . . . . . . . . . . 1 . . . . . . Part Schematics Acquired 3 | . . . . . . . 2 . . . . . . . . . . . . . . . . . . . . . . . 1 . . . . . . Parts Damaged . | . . . . . . . . . . . . . . . . . . . . . . . . . . . . . . . . . . . . . . Bothacking | -11 -10 -10 -9 -9 -9 -8 -8 -7 -7 -7 -7 -6 -6 -6 -6 -6 -6 -5 -5 -5 -5 -5 -4 -4 -4 -4 -4 -4 -4 -3 -3 -3 -2 -2 -1 -1 -1 ------------ Run | Scr Mat Min Mat Min Exi Min Mat Fac Low Low Dat Pro Fac Low Low Zio Dee Pro Fac Upp Upp War Pro Fac Was Fac Upp Upp Zhi Pro Res Qua Res Tes Acc Com Ac0 Used RIF Installer . | . . . . . . . . . . . . . . . . . . . . . . . . . . . . . . . . . . . . . . Robots Hacked 1 | . . . . . . . . . . . . . . . . . 1 . . . . . . . . . . . . . . . . . . . . Non-combat . | . . . . . . . . . . . . . . . . . . . . . . . . . . . . . . . . . . . . . . Combat 1 | . . . . . . . . . . . . . . . . . 1 . . . . . . . . . . . . . . . . . . . . Robot Hacks Applied 1 | . . . . . . . . . . . . . . . . . 1 . . . . . . . . . . . . . . . . . . . . parse_system 1 | . . . . . . . . . . . . . . . . . 1 . . . . . . . . . . . . . . . . . . . . Relay Couplers Released 9 | . . . . . . . . . . . . . . . . . . . 1 . . . . 4 . . . . . . . . 3 . 1 . . Machine Destruction 5 | . . . . . . . . . . . . . . . . . . . 1 . . . . . . . . . . . . . 3 . 1 . . Programmers 4 | . . . . . . . . . . . . . . . . . . . . . . . . 4 . . . . . . . . . . . . . Robots Rewired . | . . . . . . . . . . . . . . . . . . . . . . . . . . . . . . . . . . . . . . Allies Hacked 3 | . . . . . . . . . . . . . . . . . . . . . . . . . . . . . . . . . . 3 . . . Hacks Repelled . | . . . . . . . . . . . . . . . . . . . . . . . . . . . . . . . . . . . . . . Allies | -11 -10 -10 -9 -9 -9 -8 -8 -7 -7 -7 -7 -6 -6 -6 -6 -6 -6 -5 -5 -5 -5 -5 -4 -4 -4 -4 -4 -4 -4 -3 -3 -3 -2 -2 -1 -1 -1 -------- Run | Scr Mat Min Mat Min Exi Min Mat Fac Low Low Dat Pro Fac Low Low Zio Dee Pro Fac Upp Upp War Pro Fac Was Fac Upp Upp Zhi Pro Res Qua Res Tes Acc Com Ac0 Total Allies 131 | . . 3 . . . . . 1 2 2 . 1 . . . 6 . . . . . . . 1 18 . . . . . . 16 2 . . 61 18 Largest Group 36 | . . 2 1 . . . . 1 2 2 . 1 . . . 4 . . . . . . . 1 18 15 . . . . . 16 18 18 16 36 14 Highest-Rated Group 4172 | . . 46 31 . . . . 10 56 56 . 94 . . . 153 . . . . . . . 44 650 575 . . . . . 3888 4008 4008 3705 4172 3402 Highest-Rated Ally 243 | . . 31 31 . . . . 10 31 31 . 94 . . . 40 . . . . . . . 44 50 50 . . . . . 243 243 243 243 243 243 Total Orders 85 | . . . . . 3 . . . . . . . 3 . . 21 58 . . . . . . . . . . . . . . . . . . . . STAY 22 | . . . . . . . . . . . . . . . . 8 14 . . . . . . . . . . . . . . . . . . . . GOTO 25 | . . . . . 1 . . . . . . . 1 . . 6 17 . . . . . . . . . . . . . . . . . . . . ROAM 1 | . . . . . . . . . . . . . . . . . 1 . . . . . . . . . . . . . . . . . . . . COLLECT 8 | . . . . . . . . . . . . . 2 . . 1 5 . . . . . . . . . . . . . . . . . . . . EXPLORE 29 | . . . . . 2 . . . . . . . . . . 6 21 . . . . . . . . . . . . . . . . . . . . Ally Attacks 2023 | . . 3 5 . 34 . . 1 8 23 . 5 1 . . 130 65 . . . . . . . 76 98 . . . . . 40 113 185 331 595 310 Total Damage 125321 | . . 20 40 . 222 . . . 101 395 . 227 . . . 2544 1104 . . . . . . . 2943 3192 . . . . . 1929 10874 16844 28965 33702 22219 Kills 485 | . . . 1 . . . . . 2 5 . 2 . . . 34 12 . . . . . . . 8 20 . . . . . 5 46 75 126 131 18 Allies Corrupted 24 | . . . . . . . . . . . . . . . . . . . . . . . . . . 2 . . . . . . . . . 10 12 Allies Melted . | . . . . . . . . . . . . . . . . . . . . . . . . . . . . . . . . . . . . . . Intel | -11 -10 -10 -9 -9 -9 -8 -8 -7 -7 -7 -7 -6 -6 -6 -6 -6 -6 -5 -5 -5 -5 -5 -4 -4 -4 -4 -4 -4 -4 -3 -3 -3 -2 -2 -1 -1 -1 ------- Run | Scr Mat Min Mat Min Exi Min Mat Fac Low Low Dat Pro Fac Low Low Zio Dee Pro Fac Upp Upp War Pro Fac Was Fac Upp Upp Zhi Pro Res Qua Res Tes Acc Com Ac0 Robot Analysis Total 4 | . . . . . . . . . . . . . . . . . . . . . . . . . . . . . 4 . . . . . . . . Derelict Logs Recovered 12 | . . 2 . . . . . . 1 1 . 2 . 2 . . . . . . 2 . . . . . . 2 . . . . . . . . . Drone Launches 36 | . . . . . 13 . . 1 . . . . 1 . . 8 13 . . . . . . . . . . . . . . . . . . . . Drone Recoveries 36 | . . . . . 13 . . 1 . . . . 1 . . 8 13 . . . . . . . . . . . . . . . . . . . . Exploration | -11 -10 -10 -9 -9 -9 -8 -8 -7 -7 -7 -7 -6 -6 -6 -6 -6 -6 -5 -5 -5 -5 -5 -4 -4 -4 -4 -4 -4 -4 -3 -3 -3 -2 -2 -1 -1 -1 ------------- Run | Scr Mat Min Mat Min Exi Min Mat Fac Low Low Dat Pro Fac Low Low Zio Dee Pro Fac Upp Upp War Pro Fac Was Fac Upp Upp Zhi Pro Res Qua Res Tes Acc Com Ac0 Turns Passed 42428 | 69 739 352 1020 275 1219 55 1760 1790 838 634 131 694 1773 507 330 1614 4521 792 1912 521 689 544 450 880 312 3169 1009 542 1153 707 1124 2754 1012 643 1013 4486 395 Spaces Moved 16093 | 50 420 176 370 119 532 29 647 653 538 367 94 212 693 232 158 712 1907 345 646 221 317 255 114 350 140 1051 309 209 299 246 205 631 449 296 453 1459 189 Core 2 | 2 . . . . . . . . . . . . . . . . . . . . . . . . . . . . . . . . . . . . . Treads 2805 | . 242 176 370 119 532 12 647 360 . . . 186 161 . . . . . . . . . . . . . . . . . . . . . . . . Legs . | . . . . . . . . . . . . . . . . . . . . . . . . . . . . . . . . . . . . . . Wheels 13286 | 48 178 . . . . 17 . 293 538 367 94 26 532 232 158 712 1907 345 646 221 317 255 114 350 140 1051 309 209 299 246 205 631 449 296 453 1459 189 Hover . | . . . . . . . . . . . . . . . . . . . . . . . . . . . . . . . . . . . . . . Flight . | . . . . . . . . . . . . . . . . . . . . . . . . . . . . . . . . . . . . . . Fastest Speed 50 | 50 100 160 160 200 180 120 180 140 140 140 140 140 160 170 170 160 130 190 180 180 180 180 180 180 190 185 200 200 220 220 220 180 180 185 190 140 140 Average Speed 183 | 98 134 160 192 200 198 159 193 173 140 140 140 213 181 170 170 169 170 201 188 183 180 180 180 185 206 213 210 213 220 228 229 197 186 188 190 186 145 Slowest Speed 380 | 100 160 160 200 200 200 200 200 240 140 140 140 220 240 170 170 170 190 205 320 190 180 180 180 200 210 380 215 220 220 230 230 220 190 195 190 210 150 Overloaded Moves . | . . . . . . . . . . . . . . . . . . . . . . . . . . . . . . . . . . . . . . Propulsion Burnouts . | . . . . . . . . . . . . . . . . . . . . . . . . . . . . . . . . . . . . . . Robots Hopped 5 | . . . . . . . . . . . . . . . . . . . . . . . . . . . . . . . . 1 . . . 4 . Cave-ins Triggered . | . . . . . . . . . . . . . . . . . . . . . . . . . . . . . . . . . . . . . . Teleports 2 | . . . . . . . . . . . . . . . . . . . . . . . . . . . . . . . . . . . . 1 1 Exploration Rate (%) 42 | 4 60 42 34 34 56 16 54 12 62 54 70 45 21 51 40 65 90 59 20 44 55 38 34 8 86 32 50 48 60 41 10 58 19 47 20 40 21 Regions Visited 37 Branch Regions 25 Pre-discovered Areas 9 | . . . . . 1 . . . 1 . 1 . . . . . . . . . 1 . . . . . . 2 3 . . . . . . . . Known Exits Taken 27 | . . . . . . . . 1 1 1 1 1 1 1 1 1 1 1 1 1 1 1 1 . . 1 1 1 1 1 1 1 1 1 1 1 . Unknown Exits Taken 8 | 1 1 1 1 1 1 1 1 . . . . . . . . . . . . . . . . . . . . . . . . . . . . . . Scrap Searched 17 | . . . . . . . . . 4 2 . 4 . . . 1 . . . . 2 . 1 . . . 3 . . . . . . . . . . Spaces Dug 695 | . . . . 13 1 . 28 24 20 19 . 18 16 15 18 10 8 27 31 5 9 8 35 11 2 63 11 2 . 9 22 41 18 1 63 14 133 Terrain Destroyed 2999 | . 28 . 92 24 13 17 86 26 53 53 . 22 103 43 68 10 59 72 75 13 78 8 38 15 2 153 99 183 . 67 22 41 18 1 95 1020 302 Melee 391 | . . . . 3 1 . 14 22 9 8 . 18 16 4 7 10 8 24 30 5 9 5 6 11 2 46 11 2 . 9 22 41 18 1 14 14 1 Projectile 105 | . . . 17 2 . . 19 4 . 5 . 4 1 . . . 1 . 13 6 . . 3 4 . 2 2 5 . . . . . . 1 . 16 AOE 2503 | . 28 . 75 19 12 17 53 . 44 40 . . 86 39 61 . 50 48 32 2 69 3 29 . . 105 86 176 . 58 . . . . 80 1006 285 Actions | -11 -10 -10 -9 -9 -9 -8 -8 -7 -7 -7 -7 -6 -6 -6 -6 -6 -6 -5 -5 -5 -5 -5 -4 -4 -4 -4 -4 -4 -4 -3 -3 -3 -2 -2 -1 -1 -1 --------- Run | Scr Mat Min Mat Min Exi Min Mat Fac Low Low Dat Pro Fac Low Low Zio Dee Pro Fac Upp Upp War Pro Fac Was Fac Upp Upp Zhi Pro Res Qua Res Tes Acc Com Ac0 Total 26136 | 65 511 216 534 138 665 34 988 1100 603 430 93 410 1070 320 199 1046 3040 385 1167 286 405 327 336 509 158 1723 616 260 741 354 747 1951 593 368 546 2946 256 Wait 6578 | 2 10 14 38 3 59 . 155 234 32 3 . 163 209 37 19 251 757 1 326 7 59 56 198 76 . 366 210 4 384 75 443 1126 101 30 25 1095 10 Move 16048 | 49 419 175 369 118 531 28 646 652 537 366 93 211 692 231 157 711 1906 344 645 220 316 254 113 350 139 1050 308 208 298 245 204 628 448 295 452 1452 188 Hop 3 | . . . . . . . . . . . . . . . . . . . . . . . . . . . . . . . . 1 . . . 2 . Pick Up 440 | 6 12 5 13 . 23 . 19 19 3 2 . 2 17 21 2 8 86 . 14 3 2 2 1 7 5 64 35 5 4 1 8 18 6 7 . 17 3 Fast Attach 135 | 6 3 1 5 . 5 . 4 9 4 1 . 1 6 . 1 7 12 . 5 . . . . 4 . 5 1 . 7 1 2 2 2 3 3 34 1 Attach 167 | 1 1 2 2 . 5 1 14 9 . 4 . 1 7 1 . 3 4 2 10 1 1 . 1 3 3 9 7 4 5 3 6 8 4 3 3 31 8 Detach 149 | . 2 1 5 . 5 . 4 11 1 4 . 1 9 . 1 3 12 . 6 . . . . 1 2 4 3 1 6 1 3 4 3 3 3 49 1 Swap 404 | . 9 . 13 3 7 3 23 30 3 12 . 6 41 7 2 7 13 2 37 13 9 2 6 12 1 42 7 14 . 3 18 22 5 2 4 20 6 Drop 350 | . 10 2 12 . 11 . 13 18 6 2 . 1 11 2 1 13 93 . 12 3 2 3 1 4 2 10 2 3 8 . . 27 2 10 . 64 2 Fire 1047 | 1 45 16 75 11 6 2 92 81 6 28 . 6 38 15 9 . 53 8 57 32 7 4 10 30 4 67 32 14 28 8 23 47 3 7 14 132 36 Melee 751 | . . . . 3 13 . 18 35 11 8 . 18 32 4 7 43 93 28 55 7 9 6 6 22 2 106 11 7 1 17 40 68 19 7 23 31 1 Ram . | . . . . . . . . . . . . . . . . . . . . . . . . . . . . . . . . . . . . . . Kick . | . . . . . . . . . . . . . . . . . . . . . . . . . . . . . . . . . . . . . . Crush 4 | . . . 2 . . . . 2 . . . . . . . . . . . . . . . . . . . . . . . . . . . . . Escape Stasis 46 | . . . . . . . . . . . . . 8 . . . . . . . . . . . . . . . . . . . . . 19 19 . Rewire 3 | . . . . . . . . . . . . . . 2 . . . . . . . . . . . . . . . . . . . 1 . . . Trap 11 | . . . . . . . . . . . . . . . . . 11 . . . . . . . . . . . . . . . . . . . . Miscellaneous . | . . . . . . . . . . . . . . . . . . . . . . . . . . . . . . . . . . . . . . Route ------- -11/Scrapyard -10/Materials (discovered 2 exits: [*Mat] / *Min) -10/Mines -9/Materials (discovered 2 exits: [*Min x2]) -9/Mines -9/Exiles -8/Mines -8/Materials -7/Factory -7/Lower Caves (discovered 2 exits: *Low / *Zio) -7/Lower Caves -7/Data Miner -6/Proximity Caves -6/Factory (discovered 4 exits: Fac x3 / *Low) -6/Lower Caves -6/Lower Caves (discovered 2 exits: *Fac / *Zio) -6/Zion -6/Deep Caves -5/Proximity Caves -5/Factory (discovered 2 exits: *Upp / Ext) -5/Upper Caves -5/Upper Caves (discovered 2 exits: *Fac / *War) -5/Warlord -4/Proximity Caves -4/Factory -4/Waste -4/Factory (discovered 2 exits: *Upp x2) -4/Upper Caves -4/Upper Caves -4/Zhirov -3/Proximity Caves -3/Research (discovered 2 exits: Res / *Qua) -3/Quarantine -2/Research -2/Testing -1/Access -1/Command (discovered 2 exits: *Sur / *Ac0) -1/Access_0 Near Former Tau Ceti IV History --------- Turn | Location | Event 6 | -11/Scrapyard | Discovered new exit (range 15) 70 | -11/Scrapyard | Entered Materials 341 | -10/Materials | Build established: Mutant 601 | -10/Materials | Discovered new exit (range 7) 694 | -10/Materials | Discovered new exit (range 8) 783 | -10/Materials | Core integrity fell below 50% 809 | -10/Materials | Entered Mines 1001 | -10/Mines | Learned Materials stockpile data 1004 | -10/Mines | Found the Drone Emporium 1016 | -10/Mines | Found Prototype Device 1022 | -10/Mines | Identified Thief Drone Bay 1118 | -10/Mines | Learned Materials terminal intel 1150 | -10/Mines | Received a Mining Laser from a helpful Derelict 1150 | -10/Mines | Discovered new exit (range 8) 1161 | -10/Mines | Entered Materials 1161 | -9/Materials | Accompanied by 1 ally 1161 | -9/Materials | Evolved 2 slots: Utility x2 1163 | -9/Materials | Loaded intel: 12 terminal locations 1567 | -9/Materials | Build established: Hauler-Mutant 1955 | -9/Materials | Discovered new exit (range 11) 2164 | -9/Materials | Discovered new exit (range 16) 2181 | -9/Materials | Entered Mines 2216 | -9/Mines | Met a Derelict bent on vengeance 2374 | -9/Mines | Assembled infested the area 2394 | -9/Mines | Received a Rocket Launcher from a helpful Derelict 2447 | -9/Mines | Deemed a non-threat by the Exiles lab entrance 2447 | -9/Mines | Discovered new exit (range 5) 2456 | -9/Mines | Entered Exiles 2506 | -9/Exiles | Met 8R-AWN 2540 | -9/Exiles | Met EX-HEX 2598 | -9/Exiles | Met EX-BIN 2622 | -9/Exiles | Aligned with FarCom system 2624 | -9/Exiles | Given EX-Vault access code 2916 | -9/Exiles | Opened EX-Vault 2980 | -9/Exiles | Warned to stay clear of 0b10 Research branches 3038 | -9/Exiles | Met EX-DEC 3046 | -9/Exiles | Learned location of Zion (-6) 3152 | -9/Exiles | Attacked by the Exiles 3360 | -9/Exiles | Found Lightpack 2.0 3424 | -9/Exiles | Found Prototype Ballistic Gun 3424 | -9/Exiles | Identified 8R-AWN's Boregun 3431 | -9/Exiles | Found 8R-AWN's Boregun 3450 | -9/Exiles | Found Prototype Device 3450 | -9/Exiles | Identified AS-neutralizer No. 17b 3534 | -9/Exiles | Destroyed 8R-AWN 3646 | -9/Exiles | Discovered new exit (range 15) 3675 | -9/Exiles | Left Exiles lab with Lightpack 2.0 3675 | -9/Exiles | Entered Mines 3702 | -8/Mines | 99-TNT came to Exiles' defense 3720 | -8/Mines | Discovered new exit (range 7) 3721 | -8/Mines | Core integrity fell below 50% 3728 | -8/Mines | Core integrity fell below 20% 3730 | -8/Mines | Entered Materials 3730 | -8/Materials | Evolved 2 slots: Utility x2 3755 | -8/Materials | Lost 3 parts (1n1u1w) 3896 | -8/Materials | Repaired Lgt. Treads 4711 | -8/Materials | Lost 5 parts (1p1n2u1w) 4862 | -8/Materials | Discovered new exit (range 5) 5063 | -8/Materials | Repaired Shock Bomb Launcher 5490 | -8/Materials | Entered Factory 5490 | -7/Factory | Evolved 2 slots: Utility x2 5752 | -7/Factory | Garrison activated, responded to threat 6207 | -7/Factory | Fabricated Humpback? 6532 | -7/Factory | Fabricated Lrn. Sensor Array (x1) 7052 | -7/Factory | Fabricated Humpback (x1) 7082 | -7/Factory | Fabricated Humpback (x1) 7105 | -7/Factory | Fabricated Powered Armor (x2) 7132 | -7/Factory | Fabricated Powered Armor (x2) 7277 | -7/Factory | Discovered new exit (range 2) 7279 | -7/Factory | Identified exit to Lower Caves 7280 | -7/Factory | Entered Lower Caves 7281 | -7/Lower Caves | A Derelict revealed a hidden shortcut to a safe place 7283 | -7/Lower Caves | Identified exit to Zion 7303 | -7/Lower Caves | Learned 8 Factory zone layouts 7765 | -7/Lower Caves | A Commander dispatched an escort 7793 | -7/Lower Caves | Learned 8 Factory zone layouts 7793 | -7/Lower Caves | Learned Research stockpile data 7793 | -7/Lower Caves | Learned Extension garrison access intel 7793 | -7/Lower Caves | Learned Armory garrison access intel 7852 | -7/Lower Caves | Attracted the attention of an 0b10 checkpoint 7978 | -7/Lower Caves | Spotted 1T-E3M(f) 7979 | -7/Lower Caves | Encountered a Master Thief 7980 | -7/Lower Caves | Spotted PA-SFY(f) 7981 | -7/Lower Caves | Encountered a Master Thief 7981 | -7/Lower Caves | Allies destroyed 1T-E3M(f) 7983 | -7/Lower Caves | Lightpack 2.0 stolen by Master Thief 7989 | -7/Lower Caves | Destroyed PA-SFY(f) 8063 | -7/Lower Caves | Discovered new exit (range 10) 8074 | -7/Lower Caves | Identified exit to Lower Caves 8118 | -7/Lower Caves | Entered another Lower Caves area 8118 | -7/Lower Caves | Accompanied by 2 allies 8119 | -7/Lower Caves | Commander's escort returned to base 8119 | -7/Lower Caves | Commander's escort returned to base 8121 | -7/Lower Caves | Ambushed by wild Derelicts 8300 | -7/Lower Caves | A Commander dispatched an escort 8319 | -7/Lower Caves | Learned location of 1 exit from Research 8319 | -7/Lower Caves | Learned Factory emergency access door positions 8319 | -7/Lower Caves | Learned Extension emergency access door positions 8729 | -7/Lower Caves | Discovered new exit (range 13) 8733 | -7/Lower Caves | Learned Factory garrison access intel 8751 | -7/Lower Caves | Identified exit to Data Miner 8752 | -7/Lower Caves | Entered Data Miner 8752 | -7/Data Miner | Discovered new exit (range 6) 8779 | -7/Data Miner | Met Data Miner 8814 | -7/Data Miner | Learned location of Section 7 (-2) 8814 | -7/Data Miner | Acquired the access code to Warlord's prototype stash 8838 | -7/Data Miner | Received God Mode back door access code from Data Miner 8876 | -7/Data Miner | Identified exit to Proximity Caves 8883 | -7/Data Miner | Entered Proximity Caves 8898 | -6/Proximity Caves | Escorted by Enhanced Grunt 9249 | -6/Proximity Caves | Learned 8 Factory zone layouts 9284 | -6/Proximity Caves | Identified exit to Factory 9577 | -6/Proximity Caves | Entered Factory 9577 | -6/Factory | Evolved 2 slots: Utility x2 9578 | -6/Factory | Identified exit to Factory 9580 | -6/Factory | Loaded intel: 3 garrison access locations 9995 | -6/Factory | Repaired Broken Powered Armor 10126 | -6/Factory | Found Prototype Launcher 10126 | -6/Factory | Identified Scatter Rocket Array 10796 | -6/Factory | Fabricated Humpback? 10901 | -6/Factory | Fabricated Exp. Sensor Array? 10928 | -6/Factory | Fabricated Humpback (x1) 10931 | -6/Factory | Spotted B-75 Beast 10971 | -6/Factory | Fabricated Combat Drone Bay? 11327 | -6/Factory | First assault squad dispatched 11339 | -6/Factory | Discovered new exit (range 4) 11346 | -6/Factory | Identified exit to Lower Caves 11350 | -6/Factory | Entered Lower Caves 11462 | -6/Lower Caves | Learned Factory garrison access intel 11513 | -6/Lower Caves | Central database locked down 11754 | -6/Lower Caves | Encountered a Warlord checkpoint 11844 | -6/Lower Caves | Discovered new exit (range 8) 11856 | -6/Lower Caves | Identified exit to Lower Caves 11857 | -6/Lower Caves | Entered another Lower Caves area 11896 | -6/Lower Caves | Discovered exit to Factory (range 9) 12143 | -6/Lower Caves | Encountered a Warlord checkpoint 12183 | -6/Lower Caves | Discovered exit to Zion (range 2) 12187 | -6/Lower Caves | Entered Zion 12237 | -6/Zion | Found CR-A16's Pointy Stick 12311 | -6/Zion | System corruption cleaned by Quarantine Array 12408 | -6/Zion | Gained Derelict followers 12504 | -6/Zion | Learned Factory emergency access door positions 12621 | -6/Zion | Found Prototype Processor 12621 | -6/Zion | Identified Exp. Signal Interpreter 12628 | -6/Zion | Found Prototype Processor 12628 | -6/Zion | Identified Exp. Armor Integrity Analyzer 12756 | -6/Zion | Found Prototype Device 13234 | -6/Zion | Imprinted 13236 | -6/Zion | Declared Zion's savior 13349 | -6/Zion | Destroyed Imprinter 13350 | -6/Zion | Attacked by Zionites 13352 | -6/Zion | Extracted access codes from Imprinter's data core 13744 | -6/Zion | Identified Bomb Factory No. 2 13767 | -6/Zion | Opened final containment barrier to the Deep Caves 13796 | -6/Zion | Discovered new exit (range 3) 13796 | -6/Zion | Saw the warning signs outside the Deep Caves entrance 13799 | -6/Zion | Identified exit to Deep Caves 13801 | -6/Zion | Entered Deep Caves 13935 | -6/Deep Caves | Z-Facility disabled 14383 | -6/Deep Caves | Discovered new exit (range 102) 15296 | -6/Deep Caves | Destroyed as-34714 15391 | -6/Deep Caves | Triggered Deep Caves wall 15394 | -6/Deep Caves | Spotted AS-58830 15399 | -6/Deep Caves | Spotted AS-05177 15401 | -6/Deep Caves | Triggered Deep Caves wall 15418 | -6/Deep Caves | Destroyed AS-05177 15452 | -6/Deep Caves | Destroyed AS-58830 15779 | -6/Deep Caves | Destroyed as-90056 16024 | -6/Deep Caves | Found Surveybot 24 Scanner 16027 | -6/Deep Caves | Found Surveybot 24 Chip 16130 | -6/Deep Caves | Found Prototype Protection 16130 | -6/Deep Caves | Identified Zio. Heavy Carapace 16167 | -6/Deep Caves | Found Prototype Protection 16167 | -6/Deep Caves | Identified Zio. Weapon Casing 16427 | -6/Deep Caves | Found Zio. Weapon Casing 16430 | -6/Deep Caves | Found Zio. Weapon Casing 16486 | -6/Deep Caves | Found Zio. Weapon Casing 16494 | -6/Deep Caves | Found Zio. Weapon Casing 16802 | -6/Deep Caves | Exposed GOLEM chamber 16806 | -6/Deep Caves | Found GOLEM Unit 16812 | -6/Deep Caves | Found GOLEM Unit 16835 | -6/Deep Caves | Found GOLEM Unit 16891 | -6/Deep Caves | Found GOLEM Unit 16932 | -6/Deep Caves | Found GOLEM Unit 16943 | -6/Deep Caves | Found GOLEM Unit 16949 | -6/Deep Caves | Found GOLEM Unit 16964 | -6/Deep Caves | Found GOLEM Unit 16971 | -6/Deep Caves | Found GOLEM Unit 16982 | -6/Deep Caves | Found GOLEM Unit 16998 | -6/Deep Caves | Found GOLEM Unit 17003 | -6/Deep Caves | Found GOLEM Unit 17016 | -6/Deep Caves | Found GOLEM Unit 17027 | -6/Deep Caves | Found GOLEM Unit 17032 | -6/Deep Caves | Found GOLEM Unit 17033 | -6/Deep Caves | Destroyed 7 combat bots 17085 | -6/Deep Caves | Found Chronowheel 17203 | -6/Deep Caves | Found GOLEM Unit 17208 | -6/Deep Caves | Found GOLEM Unit 17217 | -6/Deep Caves | Found GOLEM Unit 17223 | -6/Deep Caves | Found GOLEM Unit 17235 | -6/Deep Caves | Found GOLEM Unit 17251 | -6/Deep Caves | Found GOLEM Unit 17261 | -6/Deep Caves | Found GOLEM Unit 17293 | -6/Deep Caves | Found GOLEM Unit 17299 | -6/Deep Caves | Found GOLEM Unit 17304 | -6/Deep Caves | Found GOLEM Unit 17595 | -6/Deep Caves | Found Zio. Weapon Casing 17607 | -6/Deep Caves | Found Zio. Weapon Casing 18026 | -6/Deep Caves | Found GOLEM Unit 18127 | -6/Deep Caves | Found GOLEM Unit 18321 | -6/Deep Caves | Identified exit to Proximity Caves 18322 | -6/Deep Caves | Entered Proximity Caves 18497 | -5/Proximity Caves | Spotted B-75 Beast 18510 | -5/Proximity Caves | Revealed the true nature of CR-A16's Pointy Stick 18516 | -5/Proximity Caves | Destroyed B-75 Beast 19097 | -5/Proximity Caves | Discovered exit to Factory (range 7) 19114 | -5/Proximity Caves | Entered Factory 19114 | -5/Factory | Evolved 2 slots: Utility x2 19115 | -5/Factory | Identified exit to Extension 19117 | -5/Factory | Loaded intel: 4 garrison access locations 19728 | -5/Factory | Repaired Lrn. Proton Cannon? 19816 | -5/Factory | Repaired Powered Armor 19867 | -5/Factory | Repaired Imp. Proton Missile Launcher 19900 | -5/Factory | Repaired Arm. Wheel 19946 | -5/Factory | Repaired Powered Armor? 20430 | -5/Factory | Fabricated Humpback (x1) 20466 | -5/Factory | Fabricated Humpback? 20503 | -5/Factory | Incoming investigation squad redirected 20931 | -5/Factory | Discovered new exit (range 12) 21011 | -5/Factory | Identified exit to Upper Caves 21026 | -5/Factory | Entered Upper Caves 21342 | -5/Upper Caves | Attracted the attention of an 0b10 outpost 21401 | -5/Upper Caves | Destroyed 7 combat bots 21529 | -5/Upper Caves | Discovered new exit (range 8) 21541 | -5/Upper Caves | Identified exit to Upper Caves 21547 | -5/Upper Caves | Entered another Upper Caves area 21562 | -5/Upper Caves | Discovered new exit (range 12) 21593 | -5/Upper Caves | Identified exit to Factory 21671 | -5/Upper Caves | Encountered a Warlord checkpoint 21934 | -5/Upper Caves | Learned Factory interactive machine intel 22165 | -5/Upper Caves | Discovered new exit (range 9) 22176 | -5/Upper Caves | Identified exit to Warlord 22199 | -5/Upper Caves | Learned location of Warlord (-5) 22201 | -5/Upper Caves | Spotted 7P-0QE(f) 22202 | -5/Upper Caves | Encountered a Master Thief 22206 | -5/Upper Caves | Destroyed 7P-0QE(f) 22236 | -5/Upper Caves | Entered Warlord 22271 | -5/Warlord | System corruption reached 10% 22296 | -5/Warlord | System corruption cleaned by Quarantine Array 22463 | -5/Warlord | Rebuked by Warlord 22479 | -5/Warlord | Opened Warlord's prototype stash 22488 | -5/Warlord | Warlord's base attacked by MAIN.C 22532 | -5/Warlord | Found Prototype Reactor 22695 | -5/Warlord | Warlord forces counterattacked 22758 | -5/Warlord | Discovered new exit (range 14) 22778 | -5/Warlord | Identified exit to Proximity Caves 22780 | -5/Warlord | Entered Proximity Caves 22984 | -4/Proximity Caves | Spotted 9Y-N5E(f) 22985 | -4/Proximity Caves | Encountered a Master Thief 22985 | -4/Proximity Caves | Destroyed 9Y-N5E(f) 23221 | -4/Proximity Caves | Discovered exit to Factory (range 5) 23230 | -4/Proximity Caves | Entered Factory 23230 | -4/Factory | Evolved 2 slots: Utility x2 23231 | -4/Factory | Loaded intel: 46 interactive machine locations 23475 | -4/Factory | Fabricated Humpback? 23586 | -4/Factory | Fabricated Imp. Powered Armor (x1) 23643 | -4/Factory | Fabricated Imp. Powered Armor? 23735 | -4/Factory | Fabricated Humpback (x1) 24110 | -4/Factory | Sucked down chute 24110 | -4/Factory | Entered Waste 24120 | -4/Waste | Spotted C-40 Crusher 24137 | -4/Waste | Warlord forces began an assault 24139 | -4/Waste | Spotted C-40 Crusher 24149 | -4/Waste | Destroyed C-40 Crusher 24151 | -4/Waste | Allies destroyed C-40 Crusher 24164 | -4/Waste | Found Damper Plating 24198 | -4/Waste | Found Damper Plating 24237 | -4/Waste | Spotted C-40 Crusher 24241 | -4/Waste | Allies destroyed C-40 Crusher 24292 | -4/Waste | Spotted C-40 Crusher 24296 | -4/Waste | Allies destroyed C-40 Crusher 24393 | -4/Waste | Discovered new exit (range 11) 24412 | -4/Waste | Identified exit to Factory 24422 | -4/Waste | Entered Factory 24422 | -4/Factory | Accompanied by 15 allies 24615 | -4/Factory | Found Prototype Hackware 24615 | -4/Factory | Identified Exp. Hacking Suite 24844 | -4/Factory | Fabricated Powered Armor (x2) 24871 | -4/Factory | Fabricated Powered Armor (x2) 25015 | -4/Factory | Repaired Broken Adv. Force Field 25049 | -4/Factory | Repaired Imp. Proton Missile Launcher 25080 | -4/Factory | Repaired Lrn. Proton Cannon 25115 | -4/Factory | Repaired Particle Reactor 25313 | -4/Factory | Repaired Imp. Powered Armor 25373 | -4/Factory | P-70 Sage assimilated allied 3J-DUD(m) 25422 | -4/Factory | First assault squad dispatched 25443 | -4/Factory | Incoming assault squad redirected 25455 | -4/Factory | Discovered new exit (range 16) 25945 | -4/Factory | Incoming assault squad redirected 26105 | -4/Factory | Fabricated Humpback? 26139 | -4/Factory | Fabricated Humpback (x1) 26247 | -4/Factory | Fabricated Humpback (x1) 26277 | -4/Factory | Fabricated Humpback (x1) 26306 | -4/Factory | Fabricated Humpback? 26336 | -4/Factory | Local fabrication network quarantined 26352 | -4/Factory | Fabricated Imp. Utility Shielding? 26446 | -4/Factory | Repaired Lrn. Proton Cannon 26689 | -4/Factory | Incoming assault squad redirected 27233 | -4/Factory | Found Quantum Capacitor 27437 | -4/Factory | Incoming assault squad redirected 27510 | -4/Factory | Discovered new exit (range 14) 27589 | -4/Factory | Identified exit to Upper Caves 27591 | -4/Factory | Entered Upper Caves 27720 | -4/Upper Caves | Lost 3 parts (1n2u) 28462 | -4/Upper Caves | Discovered new exit (range 5) 28471 | -4/Upper Caves | Identified exit to Upper Caves 28600 | -4/Upper Caves | Entered another Upper Caves area 28662 | -4/Upper Caves | Learned location of Testing (-2) 28772 | -4/Upper Caves | Spotted QX-TX2(f) 28773 | -4/Upper Caves | Encountered a Master Thief 28775 | -4/Upper Caves | Destroyed QX-TX2(f) 28775 | -4/Upper Caves | Spotted SI-XKS(f) 28776 | -4/Upper Caves | Encountered a Master Thief 28776 | -4/Upper Caves | Chronowheel stolen by Master Thief 28782 | -4/Upper Caves | Destroyed SI-XKS(f) 28897 | -4/Upper Caves | System corruption reached 10% 28909 | -4/Upper Caves | Lost 3 parts (2n1u) 29001 | -4/Upper Caves | Spotted ML-3C6(f) 29002 | -4/Upper Caves | Encountered a Master Thief 29007 | -4/Upper Caves | Core integrity fell below 50% 29010 | -4/Upper Caves | Destroyed ML-3C6(f) 29118 | -4/Upper Caves | Discovered new exit (range 12) 29140 | -4/Upper Caves | Identified exit to Zhirov 29142 | -4/Upper Caves | Entered Zhirov 29143 | -4/Zhirov | Discovered new exit (range 4) 29183 | -4/Zhirov | Met Zhirov 29231 | -4/Zhirov | Learned location of Quarantine (-3) 29231 | -4/Zhirov | Learned location of Command (-1) 29244 | -4/Zhirov | Zhirov requested help retrieving the SGEMP Prototype 29578 | -4/Zhirov | Found Alien Artifact 30197 | -4/Zhirov | Found Alien Artifact 30197 | -4/Zhirov | Identified Integrated Reactor 30197 | -4/Zhirov | Installed Integrated Reactor, increased core energy generation (+10) 30293 | -4/Zhirov | Identified exit to Proximity Caves 30295 | -4/Zhirov | Entered Proximity Caves 30428 | -3/Proximity Caves | Found Alien Artifact 30428 | -3/Proximity Caves | Identified Core Expander 30428 | -3/Proximity Caves | Installed Core Expander, added new Utility slot 30901 | -3/Proximity Caves | Discovered new exit (range 7) 30915 | -3/Proximity Caves | Identified exit to Research 31002 | -3/Proximity Caves | Entered Research 31002 | -3/Research | Evolved 2 slots: Power x1, Utility x1 31003 | -3/Research | Identified exit to Research 31003 | -3/Research | Identified Vortex Chain Reactor 31231 | -3/Research | Found Prototype Hackware 31231 | -3/Research | Identified Exp. System Shield 31235 | -3/Research | Found Exp. System Shield 32032 | -3/Research | Discovered new exit (range 5) 32039 | -3/Research | Identified exit to Quarantine 32126 | -3/Research | Entered Quarantine 32147 | -3/Quarantine | Found Alien Artifact 32674 | -3/Quarantine | Identified Core Reset Matrix 32674 | -3/Quarantine | Identified Transdimensional Reconstructor 32674 | -3/Quarantine | Used Core Reset Matrix 32678 | -3/Quarantine | Detected hypermatrix surge 32678 | -3/Quarantine | Sensed 14 artifacts in vicinity 32698 | -3/Quarantine | Found Subatomic Replicator 32879 | -3/Quarantine | Repaired Imp. Utility Shielding 32975 | -3/Quarantine | Found Hpw. Transdimensional Reconstructor 33889 | -3/Quarantine | Found Phase Redirector 33986 | -3/Quarantine | Repaired Imp. Utility Shielding 34026 | -3/Quarantine | Repaired Broken Imp. Powered Armor 34042 | -3/Quarantine | Discovered exit to Research (range 16) 34069 | -3/Quarantine | Spotted Alpha 7 34072 | -3/Quarantine | Destroyed Alpha 7 34103 | -3/Quarantine | Found Sigix Terminator 34138 | -3/Quarantine | Found Sigix Broadsword 34880 | -3/Quarantine | Entered Research 34880 | -2/Research | Accompanied by 16 allies 34880 | -2/Research | Evolved 2 slots: Utility x2 35139 | -2/Research | Repaired Lrn. Proton Cannon 35169 | -2/Research | Repaired Powered Armor 35407 | -2/Research | First assault squad dispatched 35475 | -2/Research | Garrison activated, responded to threat 35597 | -2/Research | Incoming assault squad redirected 35776 | -2/Research | Fabricated I-47 Archangel (x1) 35795 | -2/Research | Fabricated I-47 Archangel (x1) 35812 | -2/Research | Fabricated Imp. Utility Shielding (x2) 35853 | -2/Research | Discovered new exit (range 16) 35879 | -2/Research | Identified exit to Testing 35892 | -2/Research | Entered Testing 35892 | -2/Testing | Accompanied by 18 allies 35924 | -2/Testing | Incoming investigation squad redirected 35959 | -2/Testing | Found Prototype Energy Cannon 36074 | -2/Testing | Identified exit to Access 36144 | -2/Testing | Fabricated Centrium Wheel? 36153 | -2/Testing | Found Prototype Device 36153 | -2/Testing | Identified AEGIS Remote Shield 36350 | -2/Testing | Garrison activated, responded to threat 36357 | -2/Testing | Found GOLEM Unit 36365 | -2/Testing | Spotted PG-ZNREFY0O0M 36371 | -2/Testing | Allies destroyed PG-ZNREFY0O0M 36392 | -2/Testing | First assault squad dispatched 36411 | -2/Testing | Incoming assault squad redirected 36415 | -2/Testing | High security lockdown imminent 36495 | -2/Testing | High security lockdown engaged 36535 | -2/Testing | Entered Access 36535 | -1/Access | Accompanied by 16 allies 36535 | -1/Access | Evolved 2 slots: Utility x2 36562 | -1/Access | Identified exit to Command 36820 | -1/Access | First assault squad dispatched 36910 | -1/Access | High security lockdown imminent 36990 | -1/Access | High security lockdown engaged 37023 | -1/Access | Garrison activated, responded to threat 37023 | -1/Access | Spotted Executioner 37025 | -1/Access | Allies destroyed Executioner 37195 | -1/Access | Spotted Executioner 37195 | -1/Access | Allies destroyed Executioner 37212 | -1/Access | Spotted Investigator 37228 | -1/Access | Allies destroyed Investigator 37277 | -1/Access | Spotted Striker 37277 | -1/Access | Spotted Executioner 37277 | -1/Access | Garrison activated, responded to threat 37278 | -1/Access | Allies destroyed Striker 37283 | -1/Access | Allies destroyed Executioner 37299 | -1/Access | Spotted Striker 37303 | -1/Access | Allies destroyed Striker 37328 | -1/Access | Spotted Striker 37336 | -1/Access | Allies destroyed Striker 37442 | -1/Access | Build established: Hauler-Assassin 37457 | -1/Access | Spotted Striker 37459 | -1/Access | Allies destroyed Striker 37548 | -1/Access | Entered Command 37548 | -1/Command | Accompanied by 14 allies 37582 | -1/Command | Phase Generator disabled 37666 | -1/Command | Disengaged cave seal 37772 | -1/Command | High security lockdown imminent 37852 | -1/Command | High security lockdown engaged 38026 | -1/Command | Spotted Investigator 38029 | -1/Command | Allies destroyed Investigator 38138 | -1/Command | Fired Sigix Terminator 38138 | -1/Command | Spotted Combat Programmer 38138 | -1/Command | Allies destroyed Combat Programmer 38139 | -1/Command | Spotted M Guard 38139 | -1/Command | Spotted M Guard 38158 | -1/Command | Allies destroyed M Guard 38159 | -1/Command | Allies destroyed M Guard 38159 | -1/Command | Destroyed all MAIN.C guards 38172 | -1/Command | Spotted Executioner 38175 | -1/Command | Allies destroyed Executioner 38177 | -1/Command | Spotted Executioner 38185 | -1/Command | Spotted Executioner 38186 | -1/Command | Spotted Striker 38188 | -1/Command | Spotted Executioner 38192 | -1/Command | Spotted Executioner 38193 | -1/Command | Allies destroyed Executioner 38194 | -1/Command | Spotted Striker 38194 | -1/Command | Allies destroyed Striker 38195 | -1/Command | Allies destroyed Executioner 38205 | -1/Command | Allies destroyed Executioner 38208 | -1/Command | Allies destroyed Striker 38320 | -1/Command | Met MAIN.C 38327 | -1/Command | 0b10 Conduit disabled 38341 | -1/Command | Allies destroyed MAIN.C Shell 38343 | -1/Command | MAIN.C activated Command garrisons 38354 | -1/Command | Allies destroyed MAIN.C 38355 | -1/Command | Spotted Executioner 38379 | -1/Command | Build established: Hauler-Skirmisher 38399 | -1/Command | Allies destroyed Executioner 38403 | -1/Command | Spotted Striker 38412 | -1/Command | Allies destroyed Striker 38523 | -1/Command | Destroyed as-74297 38530 | -1/Command | Found GOLEM Unit 38607 | -1/Command | Found Prototype Reactor 38607 | -1/Command | Identified Zero-point Reactor 38613 | -1/Command | Found Zero-point Reactor 38617 | -1/Command | Found Prototype Protection 38617 | -1/Command | Identified Exp. Powered Armor 38623 | -1/Command | Found Prototype Protection 38623 | -1/Command | Identified Centrium Heavy Armor Plating 38630 | -1/Command | Found Prototype Energy Cannon 38630 | -1/Command | Identified Hpw. Disruptor Cannon 38638 | -1/Command | Found Prototype Ballistic Cannon 38638 | -1/Command | Identified Omega Cannon 38653 | -1/Command | Found Exp. Powered Armor 38766 | -1/Command | Discovered new exit (range 9) 38789 | -1/Command | Identified Imp. Potential Cannon 38827 | -1/Command | Identified exit to Surface 39032 | -1/Command | Destroyed as-32099 39038 | -1/Command | Found GOLEM Unit 39080 | -1/Command | Destroyed as-83076 39122 | -1/Command | Build established: Hauler-Assassin 39146 | -1/Command | Destroyed as-93891 39321 | -1/Command | Destroyed as-77635 39323 | -1/Command | Found GOLEM Unit 39382 | -1/Command | Destroyed as-52283 39389 | -1/Command | Found GOLEM Unit 39887 | -1/Command | Spotted Executioner 39894 | -1/Command | Allies destroyed Executioner 39923 | -1/Command | Found Prototype Device 39923 | -1/Command | Identified Beam Splitter 40943 | -1/Command | Used Subatomic Replicator to replicate Hpw. Transdimensional Reconstructor 40949 | -1/Command | Warped through subspace to slip node 40949 | -1/Command | Discovered new exit (range 4) 40952 | -1/Command | Identified exit to Access_0 42034 | -1/Command | Entered Access_0 42034 | -1/Access_0 | Accompanied by 14 allies 42035 | -1/Access_0 | Sensed 3 artifacts in vicinity 42036 | -1/Access_0 | Met Architect 42040 | -1/Access_0 | Architect warped through subspace 42044 | -1/Access_0 | Allies destroyed A8 42080 | -1/Access_0 | Architect warped through subspace 42122 | -1/Access_0 | Architect warped through subspace 42153 | -1/Access_0 | Architect warped through subspace 42162 | -1/Access_0 | Spotted Enhanced Programmer 42172 | -1/Access_0 | Allies destroyed Enhanced Programmer 42183 | -1/Access_0 | Architect warped through subspace 42191 | -1/Access_0 | Subspace Access Node disabled 42201 | -1/Access_0 | Architect warped through subspace 42206 | -1/Access_0 | Subspace Access Node disabled 42218 | -1/Access_0 | Spotted Enhanced Programmer 42221 | -1/Access_0 | Architect warped through subspace 42222 | -1/Access_0 | Spotted Enhanced Programmer 42228 | -1/Access_0 | Destroyed Enhanced Programmer 42231 | -1/Access_0 | Allies destroyed Enhanced Programmer 42242 | -1/Access_0 | Architect warped through subspace 42253 | -1/Access_0 | A6 warped into view 42260 | -1/Access_0 | Allies destroyed A6 42264 | -1/Access_0 | Spotted Enhanced Programmer 42266 | -1/Access_0 | Architect warped through subspace 42270 | -1/Access_0 | Allies destroyed Enhanced Programmer 42281 | -1/Access_0 | Spotted Enhanced Programmer 42294 | -1/Access_0 | Allies destroyed Enhanced Programmer 42295 | -1/Access_0 | Architect warped through subspace 42307 | -1/Access_0 | Architect warped through subspace 42313 | -1/Access_0 | Spotted Enhanced Programmer 42346 | -1/Access_0 | Subspace Access Node disabled 42393 | -1/Access_0 | Subspace Access Node disabled 42420 | -1/Access_0 | Allies destroyed Architect 42420 | -1/Access_0 | Warped through subspace to slip node 42420 | -1/Access_0 | Discovered exit to Surface (range 8) 42421 | -1/Access_0 | Architect triggered a singularity event 42429 | *** | Escaped singularity! Last Messages --------------- 42410_ Penetrated by Quantum Shear. <x5> 42419_ as-97635 suffers critical hit. 42420_ as-75497 Prototype Leg integration complete. 42420_ Architect: "If I can't win, no one wins!" [Achievement: The Bigger They Are] 42420_ Architect destroyed. 42420_ as-47672 suffers critical hit. 42420_ Warped through subspace, drawn to slip node. 42420_ EXIT=FOUND: SURFACE 42421_ A0_COM: Initiating irreversible singularity event. Goodbye. 42422_ A0_COM: 10. 42423_ A0_COM: 9. 42424_ A0_COM: 8. 42425_ A0_COM: 7. 42426_ A0_COM: 6. 42427_ A0_COM: 5. 42428_ A0_COM: 4. 42429_ A0_COM: 3. [Achievement: Planet Killer] [Achievement: Derelict Escape] Map ----- +----------------------------------------------------+ | | | | | | | | | | | | | | | | | | | | | | | | | | | | | | | | | ?????????????????????????????????????????????????? | | ?????????????????????????????????????????????????? | | ?????????????????????????????????????????????????? | | ?????????????????????????????????????????????????? | | ?????????????????????????????????????????????????? | | ?????????????????????????????????????????????????? | | ????????????????????????###??????????????????????? | | ???????????????????????## ##?????????????????????? | | ???????????????????????# #?????????????????????? | | ???????????????????????# @ #?????????????????????? | | ??????????????????????## #?????????????????????? | | ??????????????????????# #?????????????????????? | | ??????????????????????# ##?????????????????????? | | ??????????????????????## #?????????????????????? | | ??????????????????????# #?????????????????????? | | ??????????????????????# ##?????????????????????? | | ??????????????????????# < #?????????????????????? | | ??????????????????????# ##?????????????????????? | | ??????????????????????## #??????????????????????? | | ???????????????????????####??????????????????????? | | ?????????????????????????????????????????????????? | | ?????????????????????????????????????????????????? | | ?????????????????????????????????????????????????? | | ?????????????????????????????????????????????????? | | ?????????????????????????????????????????????????? | | ?????????????????????????????????????????????????? | | ?????????????????????????????????????????????????? | | ?????????????????????????????????????????????????? | | ?????????????????????????????????????????????????? | | ?????????????????????????????????????????????????? | | ?????????????????????????????????????????????????? | | ?????????????????????????????????????????????????? | | ?????????????????????????????????????????????????? | | ?????????????????????????????????????????????????? | +----------------------------------------------------+ Best States ------------- Heat Dissipation 83 Coolant Potential 65 Energy Generation 82 Energy Capacity 2380 Matter Stores 500 Matter Capacity 500 Sight Range 20 Robot Scan Range 30 Terrain Scan Range 24 Terrain Scan Density 210 Power Amplification 30 Additional Mass Support 12 EM Shielding 4 Armor Coverage 1600 Resistance: TH 30 Utility Shielding 90 Weapon Shielding 100 Melee Speed Boost 20 Phase Shifting 15 Evasion (%) 40 Targeting Accuracy 22 Launcher Accuracy 40 Armor Integrity Analysis 90 Recoil Reduction 2 Particle Charging 30 Offensive Hacking 28 Defensive Hacking 32 Item Schematics ----------------- Imp. Utility Shielding | -3/Quarantine | Hacked Hcp. Storage Unit | -3/Quarantine | Hacked Centrium Wheel | -3/Quarantine | Hacked Robot Schematics ------------------ I-47 Archangel | -3/Quarantine | Hacked Fabricated ------------ Humpback | x1 | -7/Factory Lrn. Sensor Array | x1 | -7/Factory Humpback | x1 | -7/Factory Humpback | x1 | -7/Factory Powered Armor | x2 | -7/Factory Powered Armor | x2 | -7/Factory Humpback | x1 | -6/Factory Exp. Sensor Array | x1 | -6/Factory Humpback | x1 | -6/Factory Combat Drone Bay | x1 | -6/Factory Humpback | x1 | -5/Factory Humpback | x1 | -5/Factory Humpback | x1 | -4/Factory Imp. Powered Armor | x1 | -4/Factory Imp. Powered Armor | x1 | -4/Factory Humpback | x1 | -4/Factory Powered Armor | x2 | -4/Factory Powered Armor | x2 | -4/Factory Humpback | x1 | -4/Factory Humpback | x1 | -4/Factory Humpback | x1 | -4/Factory Humpback | x1 | -4/Factory Humpback | x1 | -4/Factory Imp. Utility Shielding | x2 | -4/Factory I-47 Archangel | x1 | -2/Research I-47 Archangel | x1 | -2/Research Imp. Utility Shielding | x2 | -2/Research Centrium Wheel | x2 | -2/Testing Alien Tech Used ----------------- Integrated Reactor Core Expander Core Reset Matrix Phase Redirector Sigix Terminator Subatomic Replicator High-powered Transdimensional Reconstructor Achievements -------------- Behind The Curtain Derelict Escape Planet Killer Reappropriation The Bigger They Are Challenges ------------ None Game ------ Seed PhaseColdKit Manual? 0 Play Time 09:10:57 Cumulative 281.1 hours Start 2020.06.28 @ 22:39:31 End 2020.06.30 @ 23:20:52 Sessions 3 Manual Loads 0 Difficulty Rogue Special Mode None Game No. 200 Rogue 200 Adventurer 0 Explorer 0 Win Type 6 Total 6 Types 5/0/0/0/0/0/1 Lore% 78 Gallery% 88 Achievement% 71 Wizard Run 0 Options --------- ASCII 0 Keyboard 0 Movement Numpad Keybinds 0 Fullscreen 2 Font 18/SmallcapsGlow Map View 76x50 Tactical HUD 1 Map Filters NONE Filters NONE Steam X RUN: 3113da62-eadd-4dc3-9eb7-ea76c74751e5